Body Name,Body,Service Division Label,Service Division Code,Organisational Unit,Expenditure Category,Expenditure Code,CIPFA detailed expediture type,CIPFA detailed expediture code,Narrative,Date,Transaction number,Net Amount,Capital and Revenue,Supplier Name,Supplier ID,,
Chorley Borough Council,http://statistics.data.gov.uk/id/local-authority/30UE,Central Support Services,1009,Early Intervention,Miscellaneous Expenses,40200,Miscellaneous Expenses,5034,Invoice Number 1115 - Multi-skills Training Level 2,19/10/2020,0149522,315.00,Revenue,Active Lancashire,16348,,
Chorley Borough Council,http://statistics.data.gov.uk/id/local-authority/30UE,Culture & Heritage,1036,Policy & Governance,Exhibitions & Special Events,40158,Miscellaneous Expenses,5034,Performer and Crew member for Halloween,19/10/2020,0149698,250.00,Revenue,Adam Urey,77581,,
Chorley Borough Council,http://statistics.data.gov.uk/id/local-authority/30UE,Central Support Services,1009,Customer & Digital,Telephones - Other,40085,Communication and Computing,5028,,23/10/2020,0149791,"1,609.64",Revenue,Adept Telecom PLC,77452,,
Chorley Borough Council,http://statistics.data.gov.uk/id/local-authority/30UE,Central Support Services,1009,Early Intervention,Pest Control,20039,Cleaning and Domestic Supplies,5012,Pest Control Services,23/10/2020,0148860,284.78,Revenue,ALPHA PEST CONTROL LIMITED,18208,,
Chorley Borough Council,http://statistics.data.gov.uk/id/local-authority/30UE,Central Support Services,1009,Early Intervention,Pest Control,20039,Cleaning and Domestic Supplies,5012,Pest Control Services,23/10/2020,0148998,903.21,Revenue,ALPHA PEST CONTROL LIMITED,18208,,
Chorley Borough Council,http://statistics.data.gov.uk/id/local-authority/30UE,Central Support Services,1009,Early Intervention,Pest Control,20039,Cleaning and Domestic Supplies,5012,Pest Control Services,23/10/2020,0149528,719.06,Revenue,ALPHA PEST CONTROL LIMITED,18208,,
Chorley Borough Council,http://statistics.data.gov.uk/id/local-authority/30UE,Central Support Services,1009,Early Intervention,Pest Control,20039,Cleaning and Domestic Supplies,5012,Pest Control Services,23/10/2020,0149792,397.17,Revenue,ALPHA PEST CONTROL LIMITED,18208,,
Chorley Borough Council,http://statistics.data.gov.uk/id/local-authority/30UE,Central Support Services,1009,Early Intervention,Pest Control,20039,Cleaning and Domestic Supplies,5012,Pest Control Services,23/10/2020,0149861,495.18,Revenue,ALPHA PEST CONTROL LIMITED,18208,,
Chorley Borough Council,http://statistics.data.gov.uk/id/local-authority/30UE,Central Support Services,1009,Early Intervention,Pest Control,20039,Cleaning and Domestic Supplies,5012,Pest Control Services,23/10/2020,0149867,360.78,Revenue,ALPHA PEST CONTROL LIMITED,18208,,
Chorley Borough Council,http://statistics.data.gov.uk/id/local-authority/30UE,Central Support Services,1009,Early Intervention,Pest Control,20039,Cleaning and Domestic Supplies,5012,Pest Control Services,23/10/2020,0149935,"1,093.55",Revenue,ALPHA PEST CONTROL LIMITED,18208,,
Chorley Borough Council,http://statistics.data.gov.uk/id/local-authority/30UE,Corporate Management,1008,Policy & Governance,Car Leasing Payment,14100,Direct Employee Expenses,5001,VIN REDACTED: NAME REDACTED,21/10/2020,0149876,355.50,Revenue,Alphabet (Uk) Fleet Management Ltd,16651,,
Chorley Borough Council,http://statistics.data.gov.uk/id/local-authority/30UE,Corporate Management,1008,Policy & Governance,Car Leasing Payment,14100,Direct Employee Expenses,5001,VAT,21/10/2020,0149876,31.50,Revenue,Alphabet (Uk) Fleet Management Ltd,16651,,
Chorley Borough Council,http://statistics.data.gov.uk/id/local-authority/30UE,Control Accounts,Control,Policy & Governance,Manual Control Account,00001,Balance Sheet,Balance,- VAT,21/10/2020,0149876,-31.50,Revenue,Alphabet (Uk) Fleet Management Ltd,16651,,
Chorley Borough Council,http://statistics.data.gov.uk/id/local-authority/30UE,Development Control,1091,Policy & Governance,Car Leasing Payment,14100,Direct Employee Expenses,5001,VIN REDACTED: NAME REDACTED,21/10/2020,0149876,97.08,Revenue,Alphabet (Uk) Fleet Management Ltd,16651,,
Chorley Borough Council,http://statistics.data.gov.uk/id/local-authority/30UE,Development Control,1091,Policy & Governance,Car Leasing Payment,14100,Direct Employee Expenses,5001,VAT,21/10/2020,0149876,8.22,Revenue,Alphabet (Uk) Fleet Management Ltd,16651,,
Chorley Borough Council,http://statistics.data.gov.uk/id/local-authority/30UE,Control Accounts,Control,Policy & Governance,Manual Control Account,00001,Balance Sheet,Balance,- VAT,21/10/2020,0149876,-8.22,Revenue,Alphabet (Uk) Fleet Management Ltd,16651,,
Chorley Borough Council,http://statistics.data.gov.uk/id/local-authority/30UE,Development Control,1091,Policy & Governance,Car Leasing Payment,14100,Direct Employee Expenses,5001,VIN REDACTED: NAME REDACTED,21/10/2020,0149878,291.22,Revenue,Arnold Clark Finance Ltd,20685,,
Chorley Borough Council,http://statistics.data.gov.uk/id/local-authority/30UE,Development Control,1091,Policy & Governance,Car Leasing Payment,14100,Direct Employee Expenses,5001,VAT,21/10/2020,0149878,24.72,Revenue,Arnold Clark Finance Ltd,20685,,
Chorley Borough Council,http://statistics.data.gov.uk/id/local-authority/30UE,Control Accounts,Control,Policy & Governance,Manual Control Account,00001,Balance Sheet,Balance,- VAT,21/10/2020,0149878,-24.72,Revenue,Arnold Clark Finance Ltd,20685,,
Chorley Borough Council,http://statistics.data.gov.uk/id/local-authority/30UE,Central Support Services,1009,Policy & Governance,Car Leasing Payment,14100,Direct Employee Expenses,5001,VIN REDACTED: NAME REDACTED,21/10/2020,0149878,533.15,Revenue,Arnold Clark Finance Ltd,20685,,
Chorley Borough Council,http://statistics.data.gov.uk/id/local-authority/30UE,Central Support Services,1009,Policy & Governance,Car Leasing Payment,14100,Direct Employee Expenses,5001,VAT,21/10/2020,0149878,46.75,Revenue,Arnold Clark Finance Ltd,20685,,
Chorley Borough Council,http://statistics.data.gov.uk/id/local-authority/30UE,Control Accounts,Control,Policy & Governance,Manual Control Account,00001,Balance Sheet,Balance,- VAT,21/10/2020,0149878,-46.75,Revenue,Arnold Clark Finance Ltd,20685,,
Chorley Borough Council,http://statistics.data.gov.uk/id/local-authority/30UE,Service Management & Support,1009,Policy & Governance,Car Leasing Payment,14100,Direct Employee Expenses,5001,VIN REDACTED: NAME REDACTED,21/10/2020,0149880,340.36,Revenue,Arnold Clark Finance Ltd,20685,,
Chorley Borough Council,http://statistics.data.gov.uk/id/local-authority/30UE,Service Management & Support,1009,Policy & Governance,Car Leasing Payment,14100,Direct Employee Expenses,5001,VAT,21/10/2020,0149880,30.51,Revenue,Arnold Clark Finance Ltd,20685,,
Chorley Borough Council,http://statistics.data.gov.uk/id/local-authority/30UE,Control Accounts,Control,Policy & Governance,Manual Control Account,00001,Balance Sheet,Balance,- VAT,21/10/2020,0149880,-30.51,Revenue,Arnold Clark Finance Ltd,20685,,
Chorley Borough Council,http://statistics.data.gov.uk/id/local-authority/30UE,Service Management & Support,1009,Policy & Governance,Car Leasing Payment,14100,Direct Employee Expenses,5001,VIN REDACTED: NAME REDACTED - Mileage Refund,21/10/2020,0149880,-33.25,Revenue,Arnold Clark Finance Ltd,20685,,
Chorley Borough Council,http://statistics.data.gov.uk/id/local-authority/30UE,Service Management & Support,1009,Policy & Governance,Car Leasing Payment,14100,Direct Employee Expenses,5001,VAT,21/10/2020,0149880,-2.98,Revenue,Arnold Clark Finance Ltd,20685,,
Chorley Borough Council,http://statistics.data.gov.uk/id/local-authority/30UE,Control Accounts,Control,Policy & Governance,Manual Control Account,00001,Balance Sheet,Balance,- VAT,21/10/2020,0149880,2.98,Revenue,Arnold Clark Finance Ltd,20685,,
Chorley Borough Council,http://statistics.data.gov.uk/id/local-authority/30UE,Development Control,1091,Policy & Governance,Car Leasing Payment,14100,Direct Employee Expenses,5001,VIN REDACTED: NAME REDACTED,30/10/2020,0149881,"1,946.59",Revenue,Arval UK Ltd,18240,,
Chorley Borough Council,http://statistics.data.gov.uk/id/local-authority/30UE,Development Control,1091,Policy & Governance,Car Leasing Payment,14100,Direct Employee Expenses,5001,vat,30/10/2020,0149881,173.41,Revenue,Arval UK Ltd,18240,,
Chorley Borough Council,http://statistics.data.gov.uk/id/local-authority/30UE,Control Accounts,Control,Policy & Governance,Manual Control Account,00001,Balance Sheet,Balance,-vat,30/10/2020,0149881,-173.41,Revenue,Arval UK Ltd,18240,,
Chorley Borough Council,http://statistics.data.gov.uk/id/local-authority/30UE,Central Support Services,1009,Policy & Governance,Car Leasing Payment,14100,Direct Employee Expenses,5001,VIN REDACTED,30/10/2020,0149881,"3,393.22",Revenue,Arval UK Ltd,18240,,
Chorley Borough Council,http://statistics.data.gov.uk/id/local-authority/30UE,Central Support Services,1009,Policy & Governance,Car Leasing Payment,14100,Direct Employee Expenses,5001,vat,30/10/2020,0149881,313.59,Revenue,Arval UK Ltd,18240,,
Chorley Borough Council,http://statistics.data.gov.uk/id/local-authority/30UE,Control Accounts,Control,Policy & Governance,Manual Control Account,00001,Balance Sheet,Balance,-vat,30/10/2020,0149881,-313.59,Revenue,Arval UK Ltd,18240,,
Chorley Borough Council,http://statistics.data.gov.uk/id/local-authority/30UE,Unapportionable Central OHeads,1009,Customer & Digital,Legal Fees,40171,Miscellaneous Expenses,5034,Professional Fees of: Mr Joel Finnan CHORLEY BOROUGH COUNCIL -AND- NAME REDACTED Brief on Hearing,30/10/2020,0149929,625.00,Revenue,ASW Solicitors,77940,,
Chorley Borough Council,http://statistics.data.gov.uk/id/local-authority/30UE,Public Transport,1067,Customer & Digital,Bus Shelters -Maintenance,20062,Grounds Maintenance Costs,5013,"Quote from NAME REDACTED 1: Chorley Old Road, Paint Shelter 2: Bolton Road. PR6 9NA Fit 4xtop poly panels Paint Shelter",23/10/2020,0149831,"1,630.00",Revenue,Autocross Euroshel Ltd,77509,,
Chorley Borough Council,http://statistics.data.gov.uk/id/local-authority/30UE,Service Management & Support,1009,Customer & Digital,Vehicles and Plant Maintenance,30045,Direct Transport Costs,5016,FL66 OWC New Clutch and flywheel New Clutch slave cylinder,30/10/2020,0149893,976.14,Revenue,Autofit,78140,,
Chorley Borough Council,http://statistics.data.gov.uk/id/local-authority/30UE,Service Management & Support,1009,Customer & Digital,Hire Of Vehicles and Plant,30028,Contrct Hire & Operating Lease,5018,2 x John Deere 1580 with front mounted rotary cutting decks 1 x Wessex gang mower,16/10/2020,0149198,"1,242.40",Revenue,Balmers Garden Machinery,17075,,
Chorley Borough Council,http://statistics.data.gov.uk/id/local-authority/30UE,Central Support Services,1009,Commercial Services,Legal Fees,40171,Miscellaneous Expenses,5034,Professional charges (25 Aug - 21 Sept 2020) - Alker Lane,30/10/2020,0149884,163.00,Revenue,Bevan Brittan LLP Solicitors,69456,,
Chorley Borough Council,http://statistics.data.gov.uk/id/local-authority/30UE,Central Support Services,1009,Commercial Services,Legal Fees,40171,Miscellaneous Expenses,5034,Professional charges (25 Aug - 21 Sept 2020) - Tatton,30/10/2020,0149884,325.20,Revenue,Bevan Brittan LLP Solicitors,69456,,
Chorley Borough Council,http://statistics.data.gov.uk/id/local-authority/30UE,Capital,Capital,Policy & Governance,Other Contractor,03012,Capital Expenditure,Capital,"Order for Astley Hall shop development. The Glacier, 51401-OG x5, The Volcano,51401-OV x5, The Wave,51401-OW x5	",19/10/2020,0149782,822.50,Capital,Black`s Toys,80512,,
Chorley Borough Council,http://statistics.data.gov.uk/id/local-authority/30UE,Development Control,1091,Customer & Digital,Computer Software-Maintenance,40107,Communication and Computing,5028,Heritage Consultancy February - March plus mileage,30/10/2020,0149679,"1,299.57",Revenue,Blackburn with Darwen Borough Council,21000,,
Chorley Borough Council,http://statistics.data.gov.uk/id/local-authority/30UE,Democratic Represent and  Mgnt,1007,Commercial Services,Other Fees,40212,Miscellaneous Expenses,5034,Chorley Council Growth Lancashire Membership 01.04.2020-31.03.2021,23/10/2020,0149885,"15,000.00",Revenue,Blackburn with Darwen Borough Council,21000,,
Chorley Borough Council,http://statistics.data.gov.uk/id/local-authority/30UE,Central Support Services,1009,Commercial Services,Professional Fees,40063,Services,5027,Asbestos Demolition Survey of Tatton Park; Bowling Pavilion Garage Former Stage Coach Warehouse,07/10/2020,0149460,"2,245.00",Revenue,Bradley Environmental Consultants Ltd,77154,,
Chorley Borough Council,http://statistics.data.gov.uk/id/local-authority/30UE,Central Support Services,1009,Customer & Digital,Publicity - Advertising,40157,Miscellaneous Expenses,5034,Phone Book advertising,21/10/2020,0149535,"1,388.18",Revenue,British Telecommunications,18431,,
Chorley Borough Council,http://statistics.data.gov.uk/id/local-authority/30UE,Central Support Services,1009,Customer & Digital,Miscellaneous Expenses,40200,Miscellaneous Expenses,5034,1/7/20 to 30/9/20,14/10/2020,0149431,569.62,Revenue,Canon (UK) Ltd,17492,,
Chorley Borough Council,http://statistics.data.gov.uk/id/local-authority/30UE,Corporate Management,1008,Customer & Digital,Professional Fees,14011,Direct Employee Expenses,5001,Consultation Fees for Taxi Group 2 Medicals,16/10/2020,0149714,300.00,Revenue,Castlesteads Ltd,72796,,
Chorley Borough Council,http://statistics.data.gov.uk/id/local-authority/30UE,Corporate Management,1008,Commercial Services,Miscellaneous Expenses,40200,Miscellaneous Expenses,5034,Sanitising of all council offices as per agreed schedule with NAMES REDACTED,09/10/2020,0149473,"5,570.00",Revenue,Castus Solutions Limited,78812,,
Chorley Borough Council,http://statistics.data.gov.uk/id/local-authority/30UE,Corporate Management,1008,Commercial Services,Miscellaneous Expenses,40200,Miscellaneous Expenses,5034,Sanitising of all council offices as per agreed schedule with NAMES REDACTED,09/10/2020,0149537,"5,060.00",Revenue,Castus Solutions Limited,78812,,
Chorley Borough Council,http://statistics.data.gov.uk/id/local-authority/30UE,Democratic Represent and  Mgnt,1007,Policy & Governance,Other Contributions,40145,Grants and Subscriptions,5031,Charity donation from the former Mayor`s Charity Appeal (Cllr Hasina Khan 2019-2020).,02/10/2020,0149414,309.95,Revenue,Chorley Knit Wits,80890,,
Chorley Borough Council,http://statistics.data.gov.uk/id/local-authority/30UE,Service Management & Support,1009,Customer & Digital,Vehicles and Plant Maintenance,30045,Direct Transport Costs,5016,PN66 RCU 3 new tyres Disposal,23/10/2020,0149716,526.68,Revenue,Chorley Tyres,53719,,
Chorley Borough Council,http://statistics.data.gov.uk/id/local-authority/30UE,Economic Development,1096,Commercial Services,Miscellaneous Expenses,40200,Miscellaneous Expenses,5034,Bunting works Chorley Town Centre and Market Area as per last year Installation & Removal Total 3500 +VAT ,14/10/2020,0149649,"1,500.00",Revenue,City Illuminations Ltd,77388,,
Chorley Borough Council,http://statistics.data.gov.uk/id/local-authority/30UE,Unapportionable Central OHeads,1009,Policy & Governance,Computer Software-Additional,40102,Communication and Computing,5028,Purchase and implementation of Making Tax Digital Module includingServices (fixed fee) Software Annual Maintenance,21/10/2020,0146522,"8,800.00",Revenue,Civica UK Limited,17463,,
Chorley Borough Council,http://statistics.data.gov.uk/id/local-authority/30UE,Central Support Services,1009,Commercial Services,Miscellaneous Expenses,40200,Miscellaneous Expenses,5034,Supply of 20t machine and driver,14/10/2020,0149411,508.00,Revenue,Clive Hurt Plant Hire LTD,39520,,
Chorley Borough Council,http://statistics.data.gov.uk/id/local-authority/30UE,Central Support Services,1009,Commercial Services,Consultants` Fees,40077,Services,5027,Tatton - Pre Planning LCA,09/10/2020,0149540,"1,400.00",Revenue,Complete Sustainability Solutions,80558,,
Chorley Borough Council,http://statistics.data.gov.uk/id/local-authority/30UE,Central Support Services,1009,Commercial Services,Consultants` Fees,40077,Services,5027,Tatton - BREEAM Registration,09/10/2020,0149540,400.00,Revenue,Complete Sustainability Solutions,80558,,
Chorley Borough Council,http://statistics.data.gov.uk/id/local-authority/30UE,Central Support Services,1009,Commercial Services,Consultants` Fees,40077,Services,5027,Tatton - BREEAM Registration and LCA,23/10/2020,0149541,"1,800.00",Revenue,Complete Sustainability Solutions,80558,,
Chorley Borough Council,http://statistics.data.gov.uk/id/local-authority/30UE,Capital,Capital,Customer & Digital,maintena,03014,Capital Expenditure,Capital,240 L Neo-plastic wheeled bin (BLUE) Quantity = 600  with Chorley logo.  Split delivery (300/300),09/10/2020,0149494,"5,268.00",Capital,Craemer UK Ltd,64712,,
Chorley Borough Council,http://statistics.data.gov.uk/id/local-authority/30UE,Capital,Capital,Customer & Digital,maintena,03014,Capital Expenditure,Capital,240 L Neo plastic wheeled bin (BROWN) Quantity = 300     with Chorley logo,14/10/2020,0149542,"5,085.00",Capital,Craemer UK Ltd,64712,,
Chorley Borough Council,http://statistics.data.gov.uk/id/local-authority/30UE,Central Support Services,1009,Commercial Services,Professional Fees,40063,Services,5027,Traffic Statement for Alker Lane,07/10/2020,0149458,"1,000.00",Revenue,Curtins Consulting Limited,20049,,
Chorley Borough Council,http://statistics.data.gov.uk/id/local-authority/30UE,Central Support Services,1009,Commercial Services,Professional Fees,40063,Services,5027,"Transport plan - Tatton Rec Cen; Scoping Study & Site Visit, Transport Assessment, Travel Plan, Stopping-up Order (S247)",07/10/2020,0149465,"1,750.00",Revenue,Curtins Consulting Limited,20049,,
Chorley Borough Council,http://statistics.data.gov.uk/id/local-authority/30UE,Capital,Capital,Commercial Services,Main Contractor,03007,Capital Expenditure,Capital,Alker Lane Flood Risk Assessment,14/10/2020,0149466,650.00,Capital,Curtins Consulting Limited,20049,,
Chorley Borough Council,http://statistics.data.gov.uk/id/local-authority/30UE,Central Support Services,1009,Commercial Services,Consultants` Fees,40077,Services,5027,Tatton - additional pre-novation Civils (drainage diversions),14/10/2020,0149470,"3,952.50",Revenue,Curtins Consulting Limited,20049,,
Chorley Borough Council,http://statistics.data.gov.uk/id/local-authority/30UE,Corporate Management,1008,Policy & Governance,Miscellaneous Expenses,40200,Miscellaneous Expenses,5034,Invoice no. 3110. Hire of 8 x portable hand wash stations @ 45 each per week Aug 24th - Sept 20th 2020 (4 weeks),16/10/2020,0149451,"1,440.00",Revenue,Cyril Unsworth Ltd,78887,,
Chorley Borough Council,http://statistics.data.gov.uk/id/local-authority/30UE,Corporate Management,1008,Policy & Governance,Miscellaneous Expenses,40200,Miscellaneous Expenses,5034,Invoice 3108. hire of 8 x portable hand wash stations @ 45 each per week July 27th - Aug 23rd 2020 (4 weeks),16/10/2020,0149477,"1,440.00",Revenue,Cyril Unsworth Ltd,78887,,
Chorley Borough Council,http://statistics.data.gov.uk/id/local-authority/30UE,Central Support Services,1009,Customer & Digital,Computer Equipment-Purchase,40098,Communication and Computing,5028,1 x Brother DCP-L3550CDW All-in-one printer,21/10/2020,0149543,381.00,Revenue,DAC Technology Ltd,76398,,
Chorley Borough Council,http://statistics.data.gov.uk/id/local-authority/30UE,Central Support Services,1009,Customer & Digital,Computer Equipment-Purchase,40098,Communication and Computing,5028,3x Draytek 2862N Routers,21/10/2020,0149544,699.00,Revenue,DAC Technology Ltd,76398,,
Chorley Borough Council,http://statistics.data.gov.uk/id/local-authority/30UE,Central Support Services,1009,Customer & Digital,Computer Equipment-Purchase,40098,Communication and Computing,5028,headsets 49 x 10,21/10/2020,0149848,502.00,Revenue,DAC Technology Ltd,76398,,
Chorley Borough Council,http://statistics.data.gov.uk/id/local-authority/30UE,Business Support,1095,Commercial Services,Cleaning/Attendants' Services,20041,Cleaning and Domestic Supplies,5012,"evening cleaner for 1 week, w/c 14/09/20�",09/10/2020,0149496,271.00,Revenue,Daniel Adams Recruitment,78104,,
Chorley Borough Council,http://statistics.data.gov.uk/id/local-authority/30UE,Business Support,1095,Commercial Services,Cleaning/Attendants' Services,20041,Cleaning and Domestic Supplies,5012,NAME REDACTED covering cleaning at DOP between 11/09/2020 to 16/10/2020,16/10/2020,0149640,271.00,Revenue,Daniel Adams Recruitment,78104,,
Chorley Borough Council,http://statistics.data.gov.uk/id/local-authority/30UE,Business Support,1095,Commercial Services,Cleaning/Attendants' Services,20041,Cleaning and Domestic Supplies,5012,NAME REDACTED covering cleaning at DOP between 11/09/2020 to 16/10/2021,16/10/2020,0149720,271.00,Revenue,Daniel Adams Recruitment,78104,,
Chorley Borough Council,http://statistics.data.gov.uk/id/local-authority/30UE,Business Support,1095,Commercial Services,Cleaning/Attendants' Services,20041,Cleaning and Domestic Supplies,5012,NAME REDACTED covering cleaning at DOP between 11/09/2020 to 16/10/2022,23/10/2020,0149841,271.00,Revenue,Daniel Adams Recruitment,78104,,
Chorley Borough Council,http://statistics.data.gov.uk/id/local-authority/30UE,Business Support,1095,Commercial Services,Cleaning/Attendants' Services,20041,Cleaning and Domestic Supplies,5012,NAME REDACTED covering cleaning at DOP between 11/09/2020 to 16/10/2023,30/10/2020,0150175,271.00,Revenue,Daniel Adams Recruitment,78104,,
Chorley Borough Council,http://statistics.data.gov.uk/id/local-authority/30UE,Business Support,1095,Commercial Services,Miscellaneous Expenses,40200,Miscellaneous Expenses,5034,2 x PD605UNC Hytera PD605 UHF 1 4 watts DMR & analogue portable  1 x DPDLOCAL DPD UK Mainlands Delivery 10.00,14/10/2020,0149689,456.00,Revenue,DCS 2 Way Radio Ltd,77666,,
Chorley Borough Council,http://statistics.data.gov.uk/id/local-authority/30UE,Business Support,1095,Commercial Services,Miscellaneous Expenses,40200,Miscellaneous Expenses,5034,"2 x Hytera PD505 UHF DMR & analogue non screen, 2 x MCU rapid rate single way charger, 2 x UK / EU Power supply adapter",14/10/2020,0149690,450.00,Revenue,DCS 2 Way Radio Ltd,77666,,
Chorley Borough Council,http://statistics.data.gov.uk/id/local-authority/30UE,Business Support,1095,Commercial Services,Tools & Equipment - Maintenance,40005,"Equipment, Furniture & Materia",5023,Annual costs - 24/7  cover 24/7 maintenance cover Motorola SLR5500  repeater infrastructure. As per email to NAME REDACTED,16/10/2020,0149691,950.00,Revenue,DCS 2 Way Radio Ltd,77666,,
Chorley Borough Council,http://statistics.data.gov.uk/id/local-authority/30UE,Central Support Services,1009,Customer & Digital,Service Fees,40056,Services,5027,Provision of the Destin`s business rates Hub for 12 months for NNDR searches relating to small business rates reliefs.,19/10/2020,0149685,"1,750.00",Revenue,Destin Solutions Ltd,78105,,
Chorley Borough Council,http://statistics.data.gov.uk/id/local-authority/30UE,Central Support Services,1009,Policy & Governance,Furniture - Purchase,40012,"Equipment, Furniture & Materia",5023,"4 door lockers 1780h x 458w x 458d in Light Grey - 170.97 delivery to Astley Hall, Hallgate, Chorley, PR7 1XA",30/10/2020,0149889,683.88,Revenue,Diamond Business Interiors Ltd,53722,,
Chorley Borough Council,http://statistics.data.gov.uk/id/local-authority/30UE,Capital,Capital,Early Intervention,Main Contractor,03007,Capital Expenditure,Capital,Grass pitch improvement works at Westway Playing Fields,23/10/2020,0149434,"71,655.62",Capital,Duncan Ross Ltd,76803,,
Chorley Borough Council,http://statistics.data.gov.uk/id/local-authority/30UE,Service Management & Support,1009,Customer & Digital,Vehicles and Plant Maintenance,30045,Direct Transport Costs,5016,2 x new batteries @139 each DX19 XAC,09/10/2020,0149545,278.00,Revenue,Eco Battery Solutions,63378,,
Chorley Borough Council,http://statistics.data.gov.uk/id/local-authority/30UE,Central Support Services,1009,Commercial Services,Planned Maintenance,20006,Repairs Maintenance & Alts,5005,Chorley Surgery repair works following boiler breakdown,09/10/2020,0149583,"3,598.00",Revenue,EFT Construction,78195,,
Chorley Borough Council,http://statistics.data.gov.uk/id/local-authority/30UE,Recreation & Sport,1037,Commercial Services,Fixtures & Fittings - Purchase,20027,Fixtures and Fittings,5010,Replacement of carpet tiles at Astley CC,30/10/2020,0149584,"1,197.00",Revenue,EFT Construction,78195,,
Chorley Borough Council,http://statistics.data.gov.uk/id/local-authority/30UE,Central Support Services,1009,Commercial Services,General Repairs - Reactive,20004,Repairs Maintenance & Alts,5005,Blanket reactive,30/10/2020,0150019,250.00,Revenue,EFT Construction,78195,,
Chorley Borough Council,http://statistics.data.gov.uk/id/local-authority/30UE,Unapportionable Central OHeads,1009,Commercial Services,General Repairs - Reactive,20004,Repairs Maintenance & Alts,5005,Blanket reactive,30/10/2020,0150033,275.00,Revenue,EFT Construction,78195,,
Chorley Borough Council,http://statistics.data.gov.uk/id/local-authority/30UE,Central Support Services,1009,Commercial Services,General Repairs - Reactive,20004,Repairs Maintenance & Alts,5005,Blanket reactive,30/10/2020,0150034,550.00,Revenue,EFT Construction,78195,,
Chorley Borough Council,http://statistics.data.gov.uk/id/local-authority/30UE,Central Support Services,1009,Commercial Services,Asset Maintenance Fund,20012,Repairs Maintenance & Alts,5005,Blanket reactive for refugee houses,30/10/2020,0150035,405.00,Revenue,EFT Construction,78195,,
Chorley Borough Council,http://statistics.data.gov.uk/id/local-authority/30UE,Unapportionable Central OHeads,1009,Commercial Services,General Repairs - Reactive,20004,Repairs Maintenance & Alts,5005,Blanket reactive,30/10/2020,0150040,340.00,Revenue,EFT Construction,78195,,
Chorley Borough Council,http://statistics.data.gov.uk/id/local-authority/30UE,Central Support Services,1009,Commercial Services,Survey Expenses,40069,Services,5027,Ecology Survey for Tatton Recreation Grounds.,07/10/2020,0149360,"1,114.60",Revenue,ERAP (Consultant Ecologists) Ltd,78559,,
Chorley Borough Council,http://statistics.data.gov.uk/id/local-authority/30UE,Business Support,1095,Commercial Services,Internet Charges,40104,Communication and Computing,5028,"Connect Service Growth Edition: software charge, cloud primary circuit, cloud backup circuit, located inte",16/10/2020,0149724,"3,810.00",Revenue,Essensys Ltd,77836,,
Chorley Borough Council,http://statistics.data.gov.uk/id/local-authority/30UE,Central Support Services,1009,Commercial Services,Planned Maintenance,20006,Repairs Maintenance & Alts,5005,Town Hall Annual Service - Fall arrest system,09/10/2020,0148710,455.00,Revenue,Eurosafe Solutions Limited,66302,,
Chorley Borough Council,http://statistics.data.gov.uk/id/local-authority/30UE,Service Management & Support,1009,Customer & Digital,Supplies-Grounds Maintenance,40025,"Equipment, Furniture & Materia",5023,"42 Berberis thunbergii atropurpurea, 9 Fillipendula ulmaria, 9 Heuchera `Lime Green Pie`, 9 Heuchera `Red Spangles`  cranberry",09/10/2020,0149463,321.15,Revenue,Everglades Nurseries Ltd,20202,,
Chorley Borough Council,http://statistics.data.gov.uk/id/local-authority/30UE,Democratic Represent and  Mgnt,1007,Policy & Governance,Main Contractor,03007,Capital Expenditure,Capital,"Wisteria Arch for the Walled Garden at Astley Hall, Chorley.",21/10/2020,0149684,290.00,Revenue,Everglades Nurseries Ltd,20202,,
Chorley Borough Council,http://statistics.data.gov.uk/id/local-authority/30UE,Central Support Services,1009,Customer & Digital,Unitary Payment(S),50009,Private Contractors,5042,Provision of waste and recycling collection services 2020-2021,02/10/2020,0149397,"177,993.78",Revenue,FCC Environment Services (UK) Limited,77903,,
Chorley Borough Council,http://statistics.data.gov.uk/id/local-authority/30UE,Corporate Management,1008,Customer & Digital,Unitary Payment(S),50009,Private Contractors,5042,Provision of waste and recycling collection services 2020-2021,02/10/2020,0149410,"183,180.28",Revenue,FCC Environment Services (UK) Limited,77903,,
Chorley Borough Council,http://statistics.data.gov.uk/id/local-authority/30UE,Central Support Services,1009,Commercial Services,Professional Fees,40063,Services,5027,Architectural Services,23/10/2020,0148678,"6,421.56",Revenue,Fletcher Rae (UK) Limited,80432,,
Chorley Borough Council,http://statistics.data.gov.uk/id/local-authority/30UE,Central Support Services,1009,Commercial Services,Consultants` Fees,40077,Services,5027,Architectural services to RIBA Stage 4 for the Alker Lane development project,14/10/2020,0149643,"16,298.00",Revenue,Fletcher Rae (UK) Limited,80432,,
Chorley Borough Council,http://statistics.data.gov.uk/id/local-authority/30UE,Capital,Capital,Policy & Governance,Other Contractor,03012,Capital Expenditure,Capital,Amethyst; Rose Quartz; Aventurine; Carnelian; Gold Tiger Eye; Howlite; ,19/10/2020,0149475,"1,478.30",Capital,Giftstones Ltd T/A British Fossils,80856,,
Chorley Borough Council,http://statistics.data.gov.uk/id/local-authority/30UE,Service Management & Support,1009,Customer & Digital,Hire Of Vehicles and Plant,30028,Contrct Hire & Operating Lease,5018,3 Year Contract hire 1x Johnston CN101 as per ITT including servicing and Maintenance,02/10/2020,0149177,"1,762.23",Revenue,Go Plant Fleet Services Ltd,80857,,
Chorley Borough Council,http://statistics.data.gov.uk/id/local-authority/30UE,Service Management & Support,1009,Customer & Digital,Supplies-Grounds Maintenance,40025,"Equipment, Furniture & Materia",5023,As per Invoice INV00011787 Supply x 12 Schmidt skids Carriage charge,02/10/2020,0149179,448.27,Revenue,Go Plant Fleet Services Ltd,80857,,
Chorley Borough Council,http://statistics.data.gov.uk/id/local-authority/30UE,Service Management & Support,1009,Customer & Digital,Hire Of Vehicles and Plant,30028,Contrct Hire & Operating Lease,5018,3 Year Contract hire 1x Schmidt Swingo 200+ as per ITT including servicing and Maintenance,02/10/2020,0149181,"2,019.85",Revenue,Go Plant Fleet Services Ltd,80857,,
Chorley Borough Council,http://statistics.data.gov.uk/id/local-authority/30UE,Service Management & Support,1009,Customer & Digital,Hire Of Vehicles and Plant,30028,Contrct Hire & Operating Lease,5018,3 Year Contract hire 1x Schmidt Swingo 200+ as per ITT including servicing and Maintenance,02/10/2020,0149182,"2,019.85",Revenue,Go Plant Fleet Services Ltd,80857,,
Chorley Borough Council,http://statistics.data.gov.uk/id/local-authority/30UE,Service Management & Support,1009,Customer & Digital,Hire Of Vehicles and Plant,30028,Contrct Hire & Operating Lease,5018,3 Year Contract Hire Chassis mounted sweeper as per ITT. Including servicing and Maintenance. to be paid monthly in arrears,02/10/2020,0149183,"2,772.31",Revenue,Go Plant Fleet Services Ltd,80857,,
Chorley Borough Council,http://statistics.data.gov.uk/id/local-authority/30UE,Service Management & Support,1009,Customer & Digital,Supplies-Grounds Maintenance,40025,"Equipment, Furniture & Materia",5023,As per invoice INV00011785 Supply x 8 skids for Schmidt Swingo Carriage,02/10/2020,0149184,381.00,Revenue,Go Plant Fleet Services Ltd,80857,,
Chorley Borough Council,http://statistics.data.gov.uk/id/local-authority/30UE,Service Management & Support,1009,Customer & Digital,Supplies-Grounds Maintenance,40025,"Equipment, Furniture & Materia",5023,As per invoice Number : INV00012781 Quantity x4 weed ripper brushes Carriage charge 46,02/10/2020,0149192,477.48,Revenue,Go Plant Fleet Services Ltd,80857,,
Chorley Borough Council,http://statistics.data.gov.uk/id/local-authority/30UE,Service Management & Support,1009,Customer & Digital,Hire Of Vehicles and Plant,30028,Contrct Hire & Operating Lease,5018,3 Year Contract hire 1x Schmidt Swingo 200+ as per ITT including servicing and Maintenance,23/10/2020,0149671,"2,019.85",Revenue,Go Plant Fleet Services Ltd,80857,,
Chorley Borough Council,http://statistics.data.gov.uk/id/local-authority/30UE,Service Management & Support,1009,Customer & Digital,Hire Of Vehicles and Plant,30028,Contrct Hire & Operating Lease,5018,3 Year Contract hire 1x Schmidt Swingo 200+ as per ITT including servicing and Maintenance,23/10/2020,0149725,"2,019.85",Revenue,Go Plant Fleet Services Ltd,80857,,
Chorley Borough Council,http://statistics.data.gov.uk/id/local-authority/30UE,Service Management & Support,1009,Customer & Digital,Hire Of Vehicles and Plant,30028,Contrct Hire & Operating Lease,5018,3 Year Contract Hire Chassis mounted sweeper as per ITT. Including servicing and Maintenance. to be paid monthly in arrears,23/10/2020,0149726,"2,772.31",Revenue,Go Plant Fleet Services Ltd,80857,,
Chorley Borough Council,http://statistics.data.gov.uk/id/local-authority/30UE,Service Management & Support,1009,Customer & Digital,Hire Of Vehicles and Plant,30028,Contrct Hire & Operating Lease,5018,3 Year Contract hire 1x Johnston CN101 as per ITT including servicing and Maintenance,23/10/2020,0149727,"1,762.23",Revenue,Go Plant Fleet Services Ltd,80857,,
Chorley Borough Council,http://statistics.data.gov.uk/id/local-authority/30UE,Service Management & Support,1009,Customer & Digital,Supplies-Grounds Maintenance,40025,"Equipment, Furniture & Materia",5023,Quantity x 10 channel brushes 410mm for the Johnston VT652  - 34.73 (each) 46 delivery.,30/10/2020,0149939,393.30,Revenue,Go Plant Fleet Services Ltd,80857,,
Chorley Borough Council,http://statistics.data.gov.uk/id/local-authority/30UE,Service Management & Support,1009,Customer & Digital,Supplies-Grounds Maintenance,40025,"Equipment, Furniture & Materia",5023,12 Schmidt Swingo mixed poly wire brushes- 417.45 + 46 delivery,30/10/2020,0149943,463.43,Revenue,Go Plant Fleet Services Ltd,80857,,
Chorley Borough Council,http://statistics.data.gov.uk/id/local-authority/30UE,Economic Development,1096,Commercial Services,Professional Fees,40063,Services,5027,As per quote reference GCSL003-CBC004-DG/002 Phase 2 works of the Covered Market Refurbishment & Upgrade works.,16/10/2020,0149789,"3,250.00",Revenue,Gosling Construction Services,78380,,
Chorley Borough Council,http://statistics.data.gov.uk/id/local-authority/30UE,Economic Development,1096,Commercial Services,Miscellaneous Expenses,40200,Miscellaneous Expenses,5034,"Positiv me 300 task chair high back with the following options: foldaway arms, inflatable lumbar, castors for carpeted floors",30/10/2020,0150046,385.00,Revenue,Grafton Projects Limited,76545,,
Chorley Borough Council,http://statistics.data.gov.uk/id/local-authority/30UE,Corporate Management,1008,Commercial Services,Publicity - Advertising,40157,Miscellaneous Expenses,5034,"Social Media for Market Walk, Chorley.  July 2020 - March 2021 @500 per month Total 4500 + VAT",07/10/2020,0149499,500.00,Revenue,Gravity,77837,,
Chorley Borough Council,http://statistics.data.gov.uk/id/local-authority/30UE,Capital,Capital,Early Intervention,Main Contractor,03007,Capital Expenditure,Capital,"Play Equipment as set out in quotation Q-25786-X8L8. Cyclops and Nexus Viper Swing for Tatton Recreation Ground, Chorley.",07/10/2020,0149137,"19,365.00",Capital,Hags Smp LTD,22492,,
Chorley Borough Council,http://statistics.data.gov.uk/id/local-authority/30UE,Capital,Capital,Early Intervention,Main Contractor,03007,Capital Expenditure,Capital,"FAO of NAME REDACTED. Retention payments for Coronation Recreation Ground Play Ares, Chorley. ",07/10/2020,0149408,"9,594.00",Capital,Hags Smp LTD,22492,,
Chorley Borough Council,http://statistics.data.gov.uk/id/local-authority/30UE,Corporate Management,1008,Policy & Governance,Miscellaneous Expenses,40200,Miscellaneous Expenses,5034,Hire of mobile hand wash basins from !st September 2020 to 30th September 2020 Contract no. 22944,16/10/2020,0149468,"1,440.00",Revenue,Hallmark Catering,78575,,
Chorley Borough Council,http://statistics.data.gov.uk/id/local-authority/30UE,Service Management & Support,1009,Customer & Digital,Supplies-Grounds Maintenance,40025,"Equipment, Furniture & Materia",5023,"Quantity- 60,000 PPRS2513  500 x 855 x 975mmm x 200g Performance Printed Chorley Borough Sack 60k - 84.65 Per 1000",30/10/2020,0149845,"4,994.35",Revenue,Harrisons Packaging Ltd,17555,,
Chorley Borough Council,http://statistics.data.gov.uk/id/local-authority/30UE,Central Support Services,1009,Customer & Digital,IT Software - Annual Licences,40101,Communication and Computing,5028,"Anywhere365 Corporate SA, Enterprise feature pack for Chorley Council SA, Anywhere365 Extension Window SA (yearly)",21/10/2020,0148882,"7,300.00",Revenue,Hybrit LLP,77925,,
Chorley Borough Council,http://statistics.data.gov.uk/id/local-authority/30UE,Central Support Services,1009,Customer & Digital,Telephones - Other,40085,Communication and Computing,5028,Hybrit SIP charges Sept 20,14/10/2020,0149729,585.00,Revenue,Hybrit LLP,77925,,
Chorley Borough Council,http://statistics.data.gov.uk/id/local-authority/30UE,Corporate Management,1008,Policy & Governance,Other Fees,40212,Miscellaneous Expenses,5034,Subsidy for the provision of a meals on wheels service in Chorley from 17/8 to 13/9,14/10/2020,0149448,"1,908.00",Revenue,I Care GB Ltd,77247,,
Chorley Borough Council,http://statistics.data.gov.uk/id/local-authority/30UE,Corporate Management,1008,Policy & Governance,Other Fees,40212,Miscellaneous Expenses,5034,Subsidy for the provision of a meals on wheels service in Chorley up to 11/10/20,23/10/2020,0149828,"2,016.21",Revenue,I Care GB Ltd,77247,,
Chorley Borough Council,http://statistics.data.gov.uk/id/local-authority/30UE,Business Support,1095,Commercial Services,Planned Maintenance,20006,Repairs Maintenance & Alts,5005,Per your quote #QTE-020792 Inventory Standard Maintenance 21/10/2020-20/10/2021,14/10/2020,0149692,300.00,Revenue,IDN Supplies,78102,,
Chorley Borough Council,http://statistics.data.gov.uk/id/local-authority/30UE,Elections,1012,Policy & Governance,Computer - Support Services,40111,Communication and Computing,5028,"IVR - Platinum service 2020 Canvass, including 2 reloads, Print and Send, and Telephone canvass",07/10/2020,0149587,"2,097.30",Revenue,IDOX Software Limited,17542,,
Chorley Borough Council,http://statistics.data.gov.uk/id/local-authority/30UE,Central Support Services,1009,Policy & Governance,Refuse Collection,20037,Cleaning and Domestic Supplies,5012,Provision of services to Chorley Council sites,07/10/2020,0149176,545.34,Revenue,Initial,78488,,
Chorley Borough Council,http://statistics.data.gov.uk/id/local-authority/30UE,Corporate Management,1008,Customer & Digital,Clinical Waste Collection,50007,Private Contractors,5042,collection and disposal of Clinical Waste from domestic properties in the Chorley area. April 2020 to March 2021,09/10/2020,0149447,"1,023.54",Revenue,Initial,78488,,
Chorley Borough Council,http://statistics.data.gov.uk/id/local-authority/30UE,Business Support,1095,Commercial Services,Refuse Collection,20037,Cleaning and Domestic Supplies,5012,Waste Compactor Rental Services @ 270 per month for the 01 April 2020 - 31/03/2021,16/10/2020,0149667,270.00,Revenue,J&H Rentals Limited,70699,,
Chorley Borough Council,http://statistics.data.gov.uk/id/local-authority/30UE,Business Support,1095,Commercial Services,Tools & Equipment - Purchase,40003,"Equipment, Furniture & Materia",5023,PO raised for washing machine equipment at Primrose  Gardens from 20.07.2020 - 31.03.2021,07/10/2020,0149427,311.00,Revenue,JLA Total Care LTD,78420,,
Chorley Borough Council,http://statistics.data.gov.uk/id/local-authority/30UE,Business Support,1095,Commercial Services,Tools & Equipment - Purchase,40003,"Equipment, Furniture & Materia",5023,PO raised for washing machine equipment at Primrose  Gardens from 20.07.2020 - 31.03.2021,07/10/2020,0149436,311.00,Revenue,JLA Total Care LTD,78420,,
Chorley Borough Council,http://statistics.data.gov.uk/id/local-authority/30UE,Democratic Represent and  Mgnt,1007,Policy & Governance,Exhibitions & Special Events,40158,Miscellaneous Expenses,5034,Lighting assistance for filming day on 8th October at Astley Hall.,30/10/2020,0150079,335.00,Revenue,John Ginley,80958,,
Chorley Borough Council,http://statistics.data.gov.uk/id/local-authority/30UE,Service Management & Support,1009,Customer & Digital,Grounds Maintenance Contractor,20043,Grounds Maintenance Costs,5013,30 @ 3.6m x 100mm x 38mm timber,30/10/2020,0149630,147.60,Revenue,John H Mayor & Sons Ltd,16635,,
Chorley Borough Council,http://statistics.data.gov.uk/id/local-authority/30UE,Service Management & Support,1009,Customer & Digital,Grounds Maintenance Contractor,20043,Grounds Maintenance Costs,5013,10 @ 3.6m x 150mm x 75mm timber,30/10/2020,0149630,145.80,Revenue,John H Mayor & Sons Ltd,16635,,
Chorley Borough Council,http://statistics.data.gov.uk/id/local-authority/30UE,Service Management & Support,1009,Customer & Digital,Grounds Maintenance Contractor,20043,Grounds Maintenance Costs,5013,20 @ 3.6m x 75mm x 75mm timber,30/10/2020,0149630,145.80,Revenue,John H Mayor & Sons Ltd,16635,,
Chorley Borough Council,http://statistics.data.gov.uk/id/local-authority/30UE,Development Control,1091,Customer & Digital,Statutory Notices,40160,Miscellaneous Expenses,5034,Planning Public Notices to appear in the Chorley Guardian April 2020 to March 2021,02/10/2020,0148899,314.64,Revenue,JPI Media - Johnston Publishing Ltd,20072,,
Chorley Borough Council,http://statistics.data.gov.uk/id/local-authority/30UE,Development Control,1091,Customer & Digital,Statutory Notices,40160,Miscellaneous Expenses,5034,Planning Public Notices to appear in the Chorley Guardian April 2020 to March 2021,09/10/2020,0149437,288.42,Revenue,JPI Media - Johnston Publishing Ltd,20072,,
Chorley Borough Council,http://statistics.data.gov.uk/id/local-authority/30UE,Development Control,1091,Customer & Digital,Statutory Notices,40160,Miscellaneous Expenses,5034,Planning Public Notices to appear in the Chorley Guardian April 2020 to March 2021,19/10/2020,0149733,393.30,Revenue,JPI Media - Johnston Publishing Ltd,20072,,
Chorley Borough Council,http://statistics.data.gov.uk/id/local-authority/30UE,Corporate Management,1008,Commercial Services,Miscellaneous Expenses,40200,Miscellaneous Expenses,5034,"Ambassador 11 jacket (yellow) 1 � Medium, 2 � Large & 1 � XX Large Left breast - Chorley Council embroidered in black",30/10/2020,0150083,567.60,Revenue,Keltic Clothing,21988,,
Chorley Borough Council,http://statistics.data.gov.uk/id/local-authority/30UE,Corporate Management,1008,Commercial Services,Miscellaneous Expenses,40200,Miscellaneous Expenses,5034,carriage,30/10/2020,0150083,9.95,Revenue,Keltic Clothing,21988,,
Chorley Borough Council,http://statistics.data.gov.uk/id/local-authority/30UE,Corporate Management,1008,Commercial Services,Miscellaneous Expenses,40200,Miscellaneous Expenses,5034,100 foam hand sanitiser cartridges and 100 dispensers,09/10/2020,0148733,"1,158.00",Revenue,Key Engineering & Hygene Supplies,51615,,
Chorley Borough Council,http://statistics.data.gov.uk/id/local-authority/30UE,Corporate Management,1008,Customer & Digital,Miscellaneous Expenses,40200,Miscellaneous Expenses,5034,10 x Type IIR face masks pack of 50 @ 20.00 each,09/10/2020,0149394,200.00,Revenue,Key Engineering & Hygene Supplies,51615,,
Chorley Borough Council,http://statistics.data.gov.uk/id/local-authority/30UE,Corporate Management,1008,Customer & Digital,Miscellaneous Expenses,40200,Miscellaneous Expenses,5034,40 x Smartora antivirus wipes pack of 100 @ 5.53each,09/10/2020,0149394,221.20,Revenue,Key Engineering & Hygene Supplies,51615,,
Chorley Borough Council,http://statistics.data.gov.uk/id/local-authority/30UE,Business Support,1095,Commercial Services,Professional Fees,40063,Services,5027,Letting agent fees DETAIL REDACTED,07/10/2020,0149217,"7,200.00",Revenue,Knight Frank LLP,77571,,
Chorley Borough Council,http://statistics.data.gov.uk/id/local-authority/30UE,Homelessness,1075,Commercial Services,Cleaning Services,20033,Cleaning and Domestic Supplies,5012,For the clearance of ADDRESS REDACTED As per quote dated 30/09/2020,09/10/2020,0149593,290.00,Revenue,Lancashire Clearance Services Ltd,79462,,
Chorley Borough Council,http://statistics.data.gov.uk/id/local-authority/30UE,Capital,Capital,Early Intervention,Grants,03002,Capital Expenditure,Capital,ADDRESS REDACTED,14/10/2020,0149735,"5,849.00",Capital,Lancashire County Council,17758,,
Chorley Borough Council,http://statistics.data.gov.uk/id/local-authority/30UE,Capital,Capital,Early Intervention,Grants,03002,Capital Expenditure,Capital,ADDRESS REDACTED,14/10/2020,0149785,"5,401.00",Capital,Lancashire County Council,17758,,
Chorley Borough Council,http://statistics.data.gov.uk/id/local-authority/30UE,Capital,Capital,Early Intervention,Grants,03002,Capital Expenditure,Capital,ADDRESS REDACTED,14/10/2020,0149786,"1,599.14",Capital,Lancashire County Council,17758,,
Chorley Borough Council,http://statistics.data.gov.uk/id/local-authority/30UE,Capital,Capital,Commercial Services,Other Contractor,03012,Capital Expenditure,Capital,"Improvement works at Brunswick Street, Chorley, Chorley, as previously quoted�. Works to be completed as soon as possible.",30/10/2020,0150173,"36,055.53",Capital,Lancashire County Council,20027,,
Chorley Borough Council,http://statistics.data.gov.uk/id/local-authority/30UE,Service Management & Support,1009,Customer & Digital,Supplies-Grounds Maintenance,40025,"Equipment, Furniture & Materia",5023,10 tonnes rock salt delivered to Bengal Street Depot @60 per tonne,16/10/2020,0149673,600.00,Revenue,Lancashire County Council Highways,18845,,
Chorley Borough Council,http://statistics.data.gov.uk/id/local-authority/30UE,Unapportionable Central OHeads,1009,Commercial Services,General Repairs - Reactive,20004,Repairs Maintenance & Alts,5005,Reactive blanket,23/10/2020,0149609,343.91,Revenue,Lancashire Gas Services Ltd,78192,,
Chorley Borough Council,http://statistics.data.gov.uk/id/local-authority/30UE,Corporate Management,1008,Policy & Governance,Corp Training Organisational Development,17006,Indirect Employee Expenses,5002,Year One of Learning Pool contract,14/10/2020,0149439,"16,216.00",Revenue,Learning Pool Limited,76161,,
Chorley Borough Council,http://statistics.data.gov.uk/id/local-authority/30UE,Corporate Management,1008,Policy & Governance,Car Leasing Payment,14100,Direct Employee Expenses,5001,VIN REDACTED,30/10/2020,0147317,280.86,Revenue,LeasePlan UK Ltd T/A Automotive Leasing,65197,,
Chorley Borough Council,http://statistics.data.gov.uk/id/local-authority/30UE,Corporate Management,1008,Policy & Governance,Car Leasing Payment,14100,Direct Employee Expenses,5001,vat,30/10/2020,0147317,25.02,Revenue,LeasePlan UK Ltd T/A Automotive Leasing,65197,,
Chorley Borough Council,http://statistics.data.gov.uk/id/local-authority/30UE,Control Accounts,Control,Policy & Governance,Manual Control Account,00001,Balance Sheet,Balance,-vat,30/10/2020,0147317,-25.02,Revenue,LeasePlan UK Ltd T/A Automotive Leasing,65197,,
Chorley Borough Council,http://statistics.data.gov.uk/id/local-authority/30UE,Unapportionable Central OHeads,1009,Policy & Governance,Car Leasing Payment,14100,Direct Employee Expenses,5001,VIN REDACTED,30/10/2020,0148071,"2,257.15",Revenue,LeasePlan UK Ltd T/A Automotive Leasing,65197,,
Chorley Borough Council,http://statistics.data.gov.uk/id/local-authority/30UE,Central Support Services,1009,Policy & Governance,Car Leasing Payment,14100,Direct Employee Expenses,5001,vat,30/10/2020,0148071,214.20,Revenue,LeasePlan UK Ltd T/A Automotive Leasing,65197,,
Chorley Borough Council,http://statistics.data.gov.uk/id/local-authority/30UE,Control Accounts,Control,Policy & Governance,Manual Control Account,00001,Balance Sheet,Balance,-vat,30/10/2020,0148071,-214.20,Revenue,LeasePlan UK Ltd T/A Automotive Leasing,65197,,
Chorley Borough Council,http://statistics.data.gov.uk/id/local-authority/30UE,Central Support Services,1009,Policy & Governance,Car Leasing Payment,14100,Direct Employee Expenses,5001,VIN REDACTED - NAME REDACTED,30/10/2020,0149595,"2,651.91",Revenue,LeasePlan UK Ltd T/A Automotive Leasing,65197,,
Chorley Borough Council,http://statistics.data.gov.uk/id/local-authority/30UE,Unapportionable Central OHeads,1009,Policy & Governance,Car Leasing Payment,14100,Direct Employee Expenses,5001,VAT,30/10/2020,0149595,222.09,Revenue,LeasePlan UK Ltd T/A Automotive Leasing,65197,,
Chorley Borough Council,http://statistics.data.gov.uk/id/local-authority/30UE,Control Accounts,Control,Policy & Governance,Manual Control Account,00001,Balance Sheet,Balance,- VAT,30/10/2020,0149595,-222.09,Revenue,LeasePlan UK Ltd T/A Automotive Leasing,65197,,
Chorley Borough Council,http://statistics.data.gov.uk/id/local-authority/30UE,Central Support Services,1009,Policy & Governance,Car Leasing Payment,14100,Direct Employee Expenses,5001,VIN REDACTED - NAME REDACTED,30/10/2020,0149597,"2,624.85",Revenue,LeasePlan UK Ltd T/A Automotive Leasing,65197,,
Chorley Borough Council,http://statistics.data.gov.uk/id/local-authority/30UE,Central Support Services,1009,Policy & Governance,Car Leasing Payment,14100,Direct Employee Expenses,5001,VAT,30/10/2020,0149597,217.60,Revenue,LeasePlan UK Ltd T/A Automotive Leasing,65197,,
Chorley Borough Council,http://statistics.data.gov.uk/id/local-authority/30UE,Control Accounts,Control,Policy & Governance,Manual Control Account,00001,Balance Sheet,Balance,- VAT,30/10/2020,0149597,-217.60,Revenue,LeasePlan UK Ltd T/A Automotive Leasing,65197,,
Chorley Borough Council,http://statistics.data.gov.uk/id/local-authority/30UE,Central Support Services,1009,Policy & Governance,Car Leasing Payment,14100,Direct Employee Expenses,5001,VIN REDACTED - NAME REDACTED,30/10/2020,0149598,"2,435.27",Revenue,LeasePlan UK Ltd T/A Automotive Leasing,65197,,
Chorley Borough Council,http://statistics.data.gov.uk/id/local-authority/30UE,Central Support Services,1009,Policy & Governance,Car Leasing Payment,14100,Direct Employee Expenses,5001,VAT,30/10/2020,0149598,187.42,Revenue,LeasePlan UK Ltd T/A Automotive Leasing,65197,,
Chorley Borough Council,http://statistics.data.gov.uk/id/local-authority/30UE,Control Accounts,Control,Policy & Governance,Manual Control Account,00001,Balance Sheet,Balance,- VAT,30/10/2020,0149598,-187.42,Revenue,LeasePlan UK Ltd T/A Automotive Leasing,65197,,
Chorley Borough Council,http://statistics.data.gov.uk/id/local-authority/30UE,Corporate Management,1008,Policy & Governance,Car Leasing Payment,14100,Direct Employee Expenses,5001,VIN REDACTED - NAME REDACTED,30/10/2020,0149883,323.20,Revenue,LeasePlan UK Ltd T/A Automotive Leasing,65197,,
Chorley Borough Council,http://statistics.data.gov.uk/id/local-authority/30UE,Corporate Management,1008,Policy & Governance,Car Leasing Payment,14100,Direct Employee Expenses,5001,VAT,30/10/2020,0149883,23.01,Revenue,LeasePlan UK Ltd T/A Automotive Leasing,65197,,
Chorley Borough Council,http://statistics.data.gov.uk/id/local-authority/30UE,Control Accounts,Control,Policy & Governance,Manual Control Account,00001,Balance Sheet,Balance,- VAT,30/10/2020,0149883,-23.01,Revenue,LeasePlan UK Ltd T/A Automotive Leasing,65197,,
Chorley Borough Council,http://statistics.data.gov.uk/id/local-authority/30UE,Corporate Management,1008,Policy & Governance,Car Leasing Payment,14100,Direct Employee Expenses,5001,VIN REDACTED - NAME REDACTED,30/10/2020,0149883,117.45,Revenue,LeasePlan UK Ltd T/A Automotive Leasing,65197,,
Chorley Borough Council,http://statistics.data.gov.uk/id/local-authority/30UE,Central Support Services,1009,Policy & Governance,Car Leasing Payment,14100,Direct Employee Expenses,5001,VAT,30/10/2020,0149883,8.36,Revenue,LeasePlan UK Ltd T/A Automotive Leasing,65197,,
Chorley Borough Council,http://statistics.data.gov.uk/id/local-authority/30UE,Control Accounts,Control,Policy & Governance,Manual Control Account,00001,Balance Sheet,Balance,- VAT,30/10/2020,0149883,-8.36,Revenue,LeasePlan UK Ltd T/A Automotive Leasing,65197,,
Chorley Borough Council,http://statistics.data.gov.uk/id/local-authority/30UE,Central Support Services,1009,Commercial Services,Survey Expenses,40069,Services,5027,Earthworks and Drainage review G&T Site,14/10/2020,0149661,"3,187.50",Revenue,Lees Roxburgh Ltd,80768,,
Chorley Borough Council,http://statistics.data.gov.uk/id/local-authority/30UE,Capital,Capital,Commercial Services,Main Contractor,03007,Capital Expenditure,Capital,Project management services for Astley Hall Restoration project,09/10/2020,0149486,"2,186.00",Capital,Linchpin Ltd,80779,,
Chorley Borough Council,http://statistics.data.gov.uk/id/local-authority/30UE,Capital,Capital,Early Intervention,Other Expenses,03030,Capital Expenditure,Capital,65 square metres of Wildflower turf � harvested in 0.6m x 1.0m slabs� overnight courier service with tail lift to Chorley.,30/10/2020,0149820,789.75,Capital,Lindum seeded Turf Ltd,80933,,
Chorley Borough Council,http://statistics.data.gov.uk/id/local-authority/30UE,Central Support Services,1009,Early Intervention,Miscellaneous Expenses,40200,Miscellaneous Expenses,5034,300 sq m of Wildflower turf � harvested in 0.6m x 1.0m slabs� on wagon with tail lift to Chorley. For Great Knowley Open Space,30/10/2020,0149827,588.51,Revenue,Lindum seeded Turf Ltd,80933,,
Chorley Borough Council,http://statistics.data.gov.uk/id/local-authority/30UE,Open Spaces,1038,Early Intervention,Supplies-Grounds Maintenance,40025,"Equipment, Furniture & Materia",5023,301 sq m of Wildflower turf � harvested in 0.6m x 1.0m slabs� on wagon with tail lift to Chorley. For Great Knowley Open Space,30/10/2020,0149827,"2,789.49",Revenue,Lindum seeded Turf Ltd,80933,,
Chorley Borough Council,http://statistics.data.gov.uk/id/local-authority/30UE,Capital,Capital,Policy & Governance,Main Contractor,03007,Capital Expenditure,Capital,As per lighting quote provided for Astley Hall shop.Order and fitting of lighting and electrics at Astley Hall Coach House.,30/10/2020,0150093,"5,787.95",Capital,Lumenata Lighting Ltd,80908,,
Chorley Borough Council,http://statistics.data.gov.uk/id/local-authority/30UE,Capital,Capital,Early Intervention,Grants,03002,Capital Expenditure,Capital,ADDRESS REDACTED,02/10/2020,0149440,"5,700.00",Capital,M.J Park Building Contractors,20367,,
Chorley Borough Council,http://statistics.data.gov.uk/id/local-authority/30UE,Central Support Services,1009,Early Intervention,Miscellaneous Expenses,40200,Miscellaneous Expenses,5034,Annual Consultancy to support with enforcement and legal enquiries,21/10/2020,0149148,990.00,Revenue,Mallard Consultancy LTD,76458,,
Chorley Borough Council,http://statistics.data.gov.uk/id/local-authority/30UE,Central Support Services,1009,Policy & Governance,Mayors Medals,40029,"Equipment, Furniture & Materia",5023,Photography and mounted prints for the mayoral portraits: 10� x 8� mounted photo 20� x 16� mounted photo Plus digital copies.,07/10/2020,0149599,400.00,Revenue,Martin Birchall Photography,22503,,
Chorley Borough Council,http://statistics.data.gov.uk/id/local-authority/30UE,Tourism,1039,Policy & Governance,Professional Fees,40063,Services,5027,Content for Virtual Flower Show,07/10/2020,0149600,300.00,Revenue,Martin Fish Ltd,76761,,
Chorley Borough Council,http://statistics.data.gov.uk/id/local-authority/30UE,Open Spaces,1038,Customer & Digital,Playground Equipment,40008,"Equipment, Furniture & Materia",5023,20 ton Pea Gravel (clean) deliver to Astley Park,09/10/2020,0149601,549.36,Revenue,Mc & Ma Stewart (Haulage Ltd),16627,,
Chorley Borough Council,http://statistics.data.gov.uk/id/local-authority/30UE,Business Support,1095,Commercial Services,Professional Fees,40063,Services,5027,Review of service charge accounts for Market Walk and Market Walk Extension for the period 1st April 2019 - 31st March 2020,02/10/2020,0149426,"1,000.00",Revenue,Menzies LLP,76095,,
Chorley Borough Council,http://statistics.data.gov.uk/id/local-authority/30UE,Capital,Capital,Customer & Digital,maintena,03014,Capital Expenditure,Capital,200x GREEN 240-litre wheeled bin lids and pins,14/10/2020,0149498,"1,190.00",Capital,MGB Plastics Ltd,18624,,
Chorley Borough Council,http://statistics.data.gov.uk/id/local-authority/30UE,Capital,Capital,Customer & Digital,maintena,03014,Capital Expenditure,Capital,100x BLUE 240-litre wheeled bin lids and pins,14/10/2020,0149602,595.00,Capital,MGB Plastics Ltd,18624,,
Chorley Borough Council,http://statistics.data.gov.uk/id/local-authority/30UE,Central Support Services,1009,Commercial Services,Professional Fees,40063,Services,5027,Party Wall Works,23/10/2020,0149604,"5,392.50",Revenue,Mike Scanlan,80412,,
Chorley Borough Council,http://statistics.data.gov.uk/id/local-authority/30UE,Central Support Services,1009,Commercial Services,Professional Fees,40063,Services,5027,Party Wall Works,23/10/2020,0149921,"2,125.00",Revenue,Mike Scanlan,80412,,
Chorley Borough Council,http://statistics.data.gov.uk/id/local-authority/30UE,Capital,Capital,Early Intervention,Grants,03002,Capital Expenditure,Capital,ADDRESS REDACTED,02/10/2020,0149441,"4,905.14",Capital,Mint Northwest Ltd,65607,,
Chorley Borough Council,http://statistics.data.gov.uk/id/local-authority/30UE,Capital,Capital,Early Intervention,Grants,03002,Capital Expenditure,Capital,ADDRESS REDACTED,02/10/2020,0149442,"4,685.84",Capital,Mint Northwest Ltd,65607,,
Chorley Borough Council,http://statistics.data.gov.uk/id/local-authority/30UE,Capital,Capital,Early Intervention,Grants,03002,Capital Expenditure,Capital,ADDRESS REDACTED,14/10/2020,0149737,"11,821.66",Capital,Mint Northwest Ltd,65607,,
Chorley Borough Council,http://statistics.data.gov.uk/id/local-authority/30UE,Capital,Capital,Early Intervention,Grants,03002,Capital Expenditure,Capital,ADDRESS REDACTED,07/10/2020,0149617,"1,010.00",Capital,Mobility Care Services,70841,,
Chorley Borough Council,http://statistics.data.gov.uk/id/local-authority/30UE,Private Sector HSG Renewal,1073,Early Intervention,External Contractor,40198,Miscellaneous Expenses,5034,Ref 3708,21/10/2020,0149810,111.00,Revenue,Mobility Care Services,70841,,
Chorley Borough Council,http://statistics.data.gov.uk/id/local-authority/30UE,Private Sector HSG Renewal,1073,Early Intervention,External Contractor,40198,Miscellaneous Expenses,5034,Ref 3709,21/10/2020,0149810,222.00,Revenue,Mobility Care Services,70841,,
Chorley Borough Council,http://statistics.data.gov.uk/id/local-authority/30UE,Private Sector HSG Renewal,1073,Early Intervention,External Contractor,40198,Miscellaneous Expenses,5034,Ref 3711,21/10/2020,0149810,111.00,Revenue,Mobility Care Services,70841,,
Chorley Borough Council,http://statistics.data.gov.uk/id/local-authority/30UE,Private Sector HSG Renewal,1073,Early Intervention,External Contractor,40198,Miscellaneous Expenses,5034,Ref 3712,21/10/2020,0149810,256.00,Revenue,Mobility Care Services,70841,,
Chorley Borough Council,http://statistics.data.gov.uk/id/local-authority/30UE,Private Sector HSG Renewal,1073,Early Intervention,External Contractor,40198,Miscellaneous Expenses,5034,Ref 3713,21/10/2020,0149810,256.00,Revenue,Mobility Care Services,70841,,
Chorley Borough Council,http://statistics.data.gov.uk/id/local-authority/30UE,Private Sector HSG Renewal,1073,Early Intervention,External Contractor,40198,Miscellaneous Expenses,5034,Ref 3720,21/10/2020,0149810,111.00,Revenue,Mobility Care Services,70841,,
Chorley Borough Council,http://statistics.data.gov.uk/id/local-authority/30UE,Private Sector HSG Renewal,1073,Early Intervention,External Contractor,40198,Miscellaneous Expenses,5034,Ref 3719,21/10/2020,0149810,256.00,Revenue,Mobility Care Services,70841,,
Chorley Borough Council,http://statistics.data.gov.uk/id/local-authority/30UE,Private Sector HSG Renewal,1073,Early Intervention,External Contractor,40198,Miscellaneous Expenses,5034,Ref 3718,21/10/2020,0149810,230.00,Revenue,Mobility Care Services,70841,,
Chorley Borough Council,http://statistics.data.gov.uk/id/local-authority/30UE,Private Sector HSG Renewal,1073,Early Intervention,External Contractor,40198,Miscellaneous Expenses,5034,Ref 3717,21/10/2020,0149810,111.00,Revenue,Mobility Care Services,70841,,
Chorley Borough Council,http://statistics.data.gov.uk/id/local-authority/30UE,Private Sector HSG Renewal,1073,Early Intervention,External Contractor,40198,Miscellaneous Expenses,5034,Ref 3736,21/10/2020,0149810,880.00,Revenue,Mobility Care Services,70841,,
Chorley Borough Council,http://statistics.data.gov.uk/id/local-authority/30UE,Private Sector HSG Renewal,1073,Early Intervention,External Contractor,40198,Miscellaneous Expenses,5034,Ref 3735,21/10/2020,0149810,338.50,Revenue,Mobility Care Services,70841,,
Chorley Borough Council,http://statistics.data.gov.uk/id/local-authority/30UE,Private Sector HSG Renewal,1073,Early Intervention,External Contractor,40198,Miscellaneous Expenses,5034,Ref 3734,21/10/2020,0149810,99.00,Revenue,Mobility Care Services,70841,,
Chorley Borough Council,http://statistics.data.gov.uk/id/local-authority/30UE,Private Sector HSG Renewal,1073,Early Intervention,External Contractor,40198,Miscellaneous Expenses,5034,Ref 3733,21/10/2020,0149810,66.00,Revenue,Mobility Care Services,70841,,
Chorley Borough Council,http://statistics.data.gov.uk/id/local-authority/30UE,Private Sector HSG Renewal,1073,Early Intervention,External Contractor,40198,Miscellaneous Expenses,5034,Ref 3732,21/10/2020,0149810,128.00,Revenue,Mobility Care Services,70841,,
Chorley Borough Council,http://statistics.data.gov.uk/id/local-authority/30UE,Private Sector HSG Renewal,1073,Early Intervention,External Contractor,40198,Miscellaneous Expenses,5034,Ref 3731,21/10/2020,0149810,74.25,Revenue,Mobility Care Services,70841,,
Chorley Borough Council,http://statistics.data.gov.uk/id/local-authority/30UE,Private Sector HSG Renewal,1073,Early Intervention,External Contractor,40198,Miscellaneous Expenses,5034,Ref 3729,21/10/2020,0149810,66.00,Revenue,Mobility Care Services,70841,,
Chorley Borough Council,http://statistics.data.gov.uk/id/local-authority/30UE,Private Sector HSG Renewal,1073,Early Intervention,External Contractor,40198,Miscellaneous Expenses,5034,Ref 3728,21/10/2020,0149810,128.00,Revenue,Mobility Care Services,70841,,
Chorley Borough Council,http://statistics.data.gov.uk/id/local-authority/30UE,Private Sector HSG Renewal,1073,Early Intervention,External Contractor,40198,Miscellaneous Expenses,5034,Ref 3738,21/10/2020,0149810,420.00,Revenue,Mobility Care Services,70841,,
Chorley Borough Council,http://statistics.data.gov.uk/id/local-authority/30UE,Private Sector HSG Renewal,1073,Early Intervention,External Contractor,40198,Miscellaneous Expenses,5034,Ref 3743,21/10/2020,0149810,239.00,Revenue,Mobility Care Services,70841,,
Chorley Borough Council,http://statistics.data.gov.uk/id/local-authority/30UE,Private Sector HSG Renewal,1073,Early Intervention,External Contractor,40198,Miscellaneous Expenses,5034,Ref 3744,21/10/2020,0149810,239.00,Revenue,Mobility Care Services,70841,,
Chorley Borough Council,http://statistics.data.gov.uk/id/local-authority/30UE,Private Sector HSG Renewal,1073,Early Intervention,External Contractor,40198,Miscellaneous Expenses,5034,Ref 3745,21/10/2020,0149810,367.00,Revenue,Mobility Care Services,70841,,
Chorley Borough Council,http://statistics.data.gov.uk/id/local-authority/30UE,Private Sector HSG Renewal,1073,Early Intervention,External Contractor,40198,Miscellaneous Expenses,5034,Ref 3747,21/10/2020,0149810,180.00,Revenue,Mobility Care Services,70841,,
Chorley Borough Council,http://statistics.data.gov.uk/id/local-authority/30UE,Private Sector HSG Renewal,1073,Early Intervention,External Contractor,40198,Miscellaneous Expenses,5034,Ref 3755,21/10/2020,0149810,239.00,Revenue,Mobility Care Services,70841,,
Chorley Borough Council,http://statistics.data.gov.uk/id/local-authority/30UE,Private Sector HSG Renewal,1073,Early Intervention,External Contractor,40198,Miscellaneous Expenses,5034,Ref 3756,21/10/2020,0149810,367.00,Revenue,Mobility Care Services,70841,,
Chorley Borough Council,http://statistics.data.gov.uk/id/local-authority/30UE,Private Sector HSG Renewal,1073,Early Intervention,External Contractor,40198,Miscellaneous Expenses,5034,Ref 3760,21/10/2020,0149810,49.50,Revenue,Mobility Care Services,70841,,
Chorley Borough Council,http://statistics.data.gov.uk/id/local-authority/30UE,Private Sector HSG Renewal,1073,Early Intervention,External Contractor,40198,Miscellaneous Expenses,5034,Ref 3761,21/10/2020,0149810,49.50,Revenue,Mobility Care Services,70841,,
Chorley Borough Council,http://statistics.data.gov.uk/id/local-authority/30UE,Private Sector HSG Renewal,1073,Early Intervention,External Contractor,40198,Miscellaneous Expenses,5034,Ref 3762,21/10/2020,0149810,66.00,Revenue,Mobility Care Services,70841,,
Chorley Borough Council,http://statistics.data.gov.uk/id/local-authority/30UE,Private Sector HSG Renewal,1073,Early Intervention,External Contractor,40198,Miscellaneous Expenses,5034,Ref 3763,21/10/2020,0149810,40.00,Revenue,Mobility Care Services,70841,,
Chorley Borough Council,http://statistics.data.gov.uk/id/local-authority/30UE,Private Sector HSG Renewal,1073,Early Intervention,External Contractor,40198,Miscellaneous Expenses,5034,Ref 3764,21/10/2020,0149810,140.00,Revenue,Mobility Care Services,70841,,
Chorley Borough Council,http://statistics.data.gov.uk/id/local-authority/30UE,Private Sector HSG Renewal,1073,Early Intervention,External Contractor,40198,Miscellaneous Expenses,5034,Ref 3765,21/10/2020,0149810,360.00,Revenue,Mobility Care Services,70841,,
Chorley Borough Council,http://statistics.data.gov.uk/id/local-authority/30UE,Private Sector HSG Renewal,1073,Early Intervention,External Contractor,40198,Miscellaneous Expenses,5034,Ref 3773,21/10/2020,0149810,128.00,Revenue,Mobility Care Services,70841,,
Chorley Borough Council,http://statistics.data.gov.uk/id/local-authority/30UE,Private Sector HSG Renewal,1073,Early Intervention,External Contractor,40198,Miscellaneous Expenses,5034,Ref 3777,21/10/2020,0149810,111.00,Revenue,Mobility Care Services,70841,,
Chorley Borough Council,http://statistics.data.gov.uk/id/local-authority/30UE,Private Sector HSG Renewal,1073,Early Intervention,External Contractor,40198,Miscellaneous Expenses,5034,Ref 3795,21/10/2020,0149810,115.50,Revenue,Mobility Care Services,70841,,
Chorley Borough Council,http://statistics.data.gov.uk/id/local-authority/30UE,Private Sector HSG Renewal,1073,Early Intervention,External Contractor,40198,Miscellaneous Expenses,5034,Ref 3812,21/10/2020,0149810,128.00,Revenue,Mobility Care Services,70841,,
Chorley Borough Council,http://statistics.data.gov.uk/id/local-authority/30UE,Private Sector HSG Renewal,1073,Early Intervention,External Contractor,40198,Miscellaneous Expenses,5034,Ref 3811,21/10/2020,0149810,128.00,Revenue,Mobility Care Services,70841,,
Chorley Borough Council,http://statistics.data.gov.uk/id/local-authority/30UE,Private Sector HSG Renewal,1073,Early Intervention,External Contractor,40198,Miscellaneous Expenses,5034,Ref 3810,21/10/2020,0149810,128.00,Revenue,Mobility Care Services,70841,,
Chorley Borough Council,http://statistics.data.gov.uk/id/local-authority/30UE,Private Sector HSG Renewal,1073,Early Intervention,External Contractor,40198,Miscellaneous Expenses,5034,Ref 3809,21/10/2020,0149810,66.00,Revenue,Mobility Care Services,70841,,
Chorley Borough Council,http://statistics.data.gov.uk/id/local-authority/30UE,Private Sector HSG Renewal,1073,Early Intervention,External Contractor,40198,Miscellaneous Expenses,5034,Ref 3815,21/10/2020,0149810,222.00,Revenue,Mobility Care Services,70841,,
Chorley Borough Council,http://statistics.data.gov.uk/id/local-authority/30UE,Private Sector HSG Renewal,1073,Early Intervention,External Contractor,40198,Miscellaneous Expenses,5034,Ref 3814,21/10/2020,0149810,239.00,Revenue,Mobility Care Services,70841,,
Chorley Borough Council,http://statistics.data.gov.uk/id/local-authority/30UE,Private Sector HSG Renewal,1073,Early Intervention,External Contractor,40198,Miscellaneous Expenses,5034,Ref 3813,21/10/2020,0149810,320.00,Revenue,Mobility Care Services,70841,,
Chorley Borough Council,http://statistics.data.gov.uk/id/local-authority/30UE,Private Sector HSG Renewal,1073,Early Intervention,External Contractor,40198,Miscellaneous Expenses,5034,Ref 3816,21/10/2020,0149810,111.00,Revenue,Mobility Care Services,70841,,
Chorley Borough Council,http://statistics.data.gov.uk/id/local-authority/30UE,Private Sector HSG Renewal,1073,Early Intervention,External Contractor,40198,Miscellaneous Expenses,5034,Ref 3822,21/10/2020,0149810,368.00,Revenue,Mobility Care Services,70841,,
Chorley Borough Council,http://statistics.data.gov.uk/id/local-authority/30UE,Private Sector HSG Renewal,1073,Early Intervention,External Contractor,40198,Miscellaneous Expenses,5034,Ref 3823,21/10/2020,0149810,128.00,Revenue,Mobility Care Services,70841,,
Chorley Borough Council,http://statistics.data.gov.uk/id/local-authority/30UE,Private Sector HSG Renewal,1073,Early Intervention,External Contractor,40198,Miscellaneous Expenses,5034,Ref 3824,21/10/2020,0149810,256.00,Revenue,Mobility Care Services,70841,,
Chorley Borough Council,http://statistics.data.gov.uk/id/local-authority/30UE,Private Sector HSG Renewal,1073,Early Intervention,External Contractor,40198,Miscellaneous Expenses,5034,Ref 3828,21/10/2020,0149810,180.00,Revenue,Mobility Care Services,70841,,
Chorley Borough Council,http://statistics.data.gov.uk/id/local-authority/30UE,Unapportionable Central OHeads,1009,Chief Executive,Postages,40082,Communication and Computing,5028,NFS 330 Franking machine & scales NE8002365/DA124367 for October 2020 to September 2021,21/10/2020,0149741,431.00,Revenue,Nationwide Franking Sense,22546,,
Chorley Borough Council,http://statistics.data.gov.uk/id/local-authority/30UE,Central Support Services,1009,Early Intervention,Miscellaneous Expenses,40200,Miscellaneous Expenses,5034,2 x Aluminium lecterns - solid aluminium frame mounted on one 1600 x 100 x 100mm aluminium box section leg ,14/10/2020,0149663,"1,910.00",Revenue,Nature Sign Design,64676,,
Chorley Borough Council,http://statistics.data.gov.uk/id/local-authority/30UE,Business Support,1095,Commercial Services,Security Service,40062,Services,5027,Site Security Services at Market Walk Shopping Centre from 5pm until midnight 7 days a week. Hourly rate 10.75 +VAT ,14/10/2020,0149136,526.75,Revenue,New Concept Security NW Ltd T/A New Concept Goup,80488,,
Chorley Borough Council,http://statistics.data.gov.uk/id/local-authority/30UE,Business Support,1095,Commercial Services,Security Service,40062,Services,5027,Site Security Services at Market Walk Shopping Centre from 5pm until midnight 7 days a week. Hourly rate 10.75 +VAT ,16/10/2020,0149464,521.37,Revenue,New Concept Security NW Ltd T/A New Concept Goup,80488,,
Chorley Borough Council,http://statistics.data.gov.uk/id/local-authority/30UE,Business Support,1095,Commercial Services,Security Service,40062,Services,5027,Site Security Services at Market Walk Shopping Centre from 5pm until midnight 7 days a week. Hourly rate 10.75 +VAT ,16/10/2020,0149606,526.75,Revenue,New Concept Security NW Ltd T/A New Concept Goup,80488,,
Chorley Borough Council,http://statistics.data.gov.uk/id/local-authority/30UE,Business Support,1095,Commercial Services,Security Service,40062,Services,5027,Site Security Services at Market Walk Shopping Centre from 5pm until midnight 7 days a week. Hourly rate 10.75 +VAT ,16/10/2020,0149742,526.75,Revenue,New Concept Security NW Ltd T/A New Concept Goup,80488,,
Chorley Borough Council,http://statistics.data.gov.uk/id/local-authority/30UE,Business Support,1095,Commercial Services,Security Service,40062,Services,5027,Site Security Services at Market Walk Shopping Centre from 5pm until midnight 7 days a week. Hourly rate 10.75 +VAT ,16/10/2020,0149743,526.75,Revenue,New Concept Security NW Ltd T/A New Concept Goup,80488,,
Chorley Borough Council,http://statistics.data.gov.uk/id/local-authority/30UE,Business Support,1095,Commercial Services,Refreshments,40036,Catering,5024,NWT084 Arabica Coffee (4 x 500g) x 4 @ 59.96,30/10/2020,0150092,239.84,Revenue,North West Tea FM Solutions,78255,,
Chorley Borough Council,http://statistics.data.gov.uk/id/local-authority/30UE,Business Support,1095,Commercial Services,Refreshments,40036,Catering,5024,NWT113 Granulated Sugar (15 x 1kg) x 1 @13.95,30/10/2020,0150092,12.49,Revenue,North West Tea FM Solutions,78255,,
Chorley Borough Council,http://statistics.data.gov.uk/id/local-authority/30UE,Business Support,1095,Commercial Services,Refreshments,40036,Catering,5024,NWT220 Yorkshire Tea (2 x 1040) x 1 @ 41.98,30/10/2020,0150092,41.98,Revenue,North West Tea FM Solutions,78255,,
Chorley Borough Council,http://statistics.data.gov.uk/id/local-authority/30UE,Business Support,1095,Commercial Services,Refreshments,40036,Catering,5024,NWT 127 s/skimmed milk jiggers x 6 @ 3.20,30/10/2020,0150092,19.20,Revenue,North West Tea FM Solutions,78255,,
Chorley Borough Council,http://statistics.data.gov.uk/id/local-authority/30UE,Business Support,1095,Commercial Services,Refreshments,40036,Catering,5024,NWT148 Crawfords Mini Pack Biscuits x 4 @ 13.99,30/10/2020,0150092,55.96,Revenue,North West Tea FM Solutions,78255,,
Chorley Borough Council,http://statistics.data.gov.uk/id/local-authority/30UE,Business Support,1095,Commercial Services,Refreshments,40036,Catering,5024,Carriage,30/10/2020,0150092,6.99,Revenue,North West Tea FM Solutions,78255,,
Chorley Borough Council,http://statistics.data.gov.uk/id/local-authority/30UE,Parking Services,1066,Commercial Services,External Contractors,50008,Private Contractors,5042,"off street car park enforcement, cash collection, cash counting facilities and third party bulk cash collections 01.04.20 - 31.10.20",07/10/2020,0149430,"5,085.05",Revenue,NSL Limited,67253,,
Chorley Borough Council,http://statistics.data.gov.uk/id/local-authority/30UE,Service Management & Support,1009,Customer & Digital,Supplies-Grounds Maintenance,40025,"Equipment, Furniture & Materia",5023,"Cleaned, sanded and re-painted 5 memorial benches AT Chorley Cemetery",19/10/2020,0149579,400.00,Revenue,Nuchoice Limited,75454,,
Chorley Borough Council,http://statistics.data.gov.uk/id/local-authority/30UE,Business Support,1095,Commercial Services,Miscellaneous Expenses,40200,Miscellaneous Expenses,5034,Please supply the following: Illuminated laser pumpkin head for Market Walk planter. Supply only Delivery to: NAME REDACTED,23/10/2020,0149744,"1,600.00",Revenue,Nuchoice Limited,75454,,
Chorley Borough Council,http://statistics.data.gov.uk/id/local-authority/30UE,Control Accounts,Control,Customer & Digital,Manual Control Account,00001,Balance Sheet,Balance,refund,30/10/2020,0149985,"8,795.76",Revenue,Oakdene Fine Wine Importers Limited,80889,,
Chorley Borough Council,http://statistics.data.gov.uk/id/local-authority/30UE,Corporate Management,1008,Policy & Governance,Miscellaneous Expenses,40200,Miscellaneous Expenses,5034,General cleaning of toilets at Astley Hall for September. 61 hours,07/10/2020,0149287,786.90,Revenue,OC Cleaning Solutions Limited,78311,,
Chorley Borough Council,http://statistics.data.gov.uk/id/local-authority/30UE,Business Support,1095,Commercial Services,Cleaning/Attendants' Services,20041,Cleaning and Domestic Supplies,5012,Per your invoice 20/01275. General cleaning of Strawberry Fields Digital Hub 1st to 10th September 2020,07/10/2020,0149492,802.56,Revenue,OC Cleaning Solutions Limited,78311,,
Chorley Borough Council,http://statistics.data.gov.uk/id/local-authority/30UE,Recreation & Sport,1037,Early Intervention,Miscellaneous Expenses,40200,Miscellaneous Expenses,5034,Clayton Green Sports Centre Gym Equipment: Barbell sets Barbell racks Reebok Studio steps Yoga mats Mat hanger,19/10/2020,0149681,"4,948.46",Revenue,Origin Fitness,80874,,
Chorley Borough Council,http://statistics.data.gov.uk/id/local-authority/30UE,Corporate Management,1008,Early Intervention,Miscellaneous Expenses,40200,Miscellaneous Expenses,5034,Hotel Fees NAME REDACTED 17.08.20 to 23.08.20 Parr Hall Farm,07/10/2020,0149506,350.00,Revenue,Parr Hall Farm,76175,,
Chorley Borough Council,http://statistics.data.gov.uk/id/local-authority/30UE,Economic Development,1096,Commercial Services,Cleaning Materials,40019,"Equipment, Furniture & Materia",5023,Please supply cleaning materials as per email,16/10/2020,0149576,327.44,Revenue,Pattersons Holdings (Bristol),77537,,
Chorley Borough Council,http://statistics.data.gov.uk/id/local-authority/30UE,Economic Development,1096,Commercial Services,Cleaning Materials,40019,"Equipment, Furniture & Materia",5023,Please supply cleaning materials as per email,30/10/2020,0149982,319.28,Revenue,Pattersons Holdings (Bristol),77537,,
Chorley Borough Council,http://statistics.data.gov.uk/id/local-authority/30UE,Capital,Capital,Early Intervention,Main Contractor,03007,Capital Expenditure,Capital,"Carr Brook Kingfisher survey, Phase 1 habitat survey and recommendations report as in the project specification and quote",23/10/2020,0149905,950.00,Capital,Pennine Ecological,16798,,
Chorley Borough Council,http://statistics.data.gov.uk/id/local-authority/30UE,Central Support Services,1009,Commercial Services,Professional Fees,40063,Services,5027,Quantity surveying and project  management services for Whittle GP Surgery; RIBA Stage 3 & Stage 4; Compensation Event,23/10/2020,0149573,"4,200.00",Revenue,Perfect Circle JV Ltd,76438,,
Chorley Borough Council,http://statistics.data.gov.uk/id/local-authority/30UE,Central Support Services,1009,Customer & Digital,Printing,40043,"Printing, Stationery & General",5026,Garden Waste Subscription Permits 2020/21,14/10/2020,0149675,"1,044.56",Revenue,Permiserv Ltd,77202,,
Chorley Borough Council,http://statistics.data.gov.uk/id/local-authority/30UE,Service Management & Support,1009,Customer & Digital,Diesel/Derv,30007,Direct Transport Costs,5016,"Supply and deliver of 6500 litres of road diesel and 2,500litres of gas oil. As procured via the chest",23/10/2020,0149425,"1,025.00",Revenue,Pilkington Oils,18075,,
Chorley Borough Council,http://statistics.data.gov.uk/id/local-authority/30UE,Service Management & Support,1009,Customer & Digital,Diesel/Derv,30007,Direct Transport Costs,5016,"Supply and deliver of 6500 litres of road diesel and 2,500litres of gas oil. As procured via the chest",23/10/2020,0149443,"5,556.32",Revenue,Pilkington Oils,18075,,
Chorley Borough Council,http://statistics.data.gov.uk/id/local-authority/30UE,Development Control,1091,Customer & Digital,Planning Application Fees,60149,Customer & Client Receipts,5064,refund plan app,30/10/2020,0149758,462.00,Revenue,Planning Portal Ltd,77808,,
Chorley Borough Council,http://statistics.data.gov.uk/id/local-authority/30UE,Central Support Services,1009,Commercial Services,Miscellaneous Expenses,40200,Miscellaneous Expenses,5034,Whittle  Surgery Hoarding Signage,09/10/2020,0149354,382.68,Revenue,Poppy Signs Ltd,21898,,
Chorley Borough Council,http://statistics.data.gov.uk/id/local-authority/30UE,Central Support Services,1009,Customer & Digital,Safety Signs And Posters,40017,"Equipment, Furniture & Materia",5023,A3 Correx Board Fly Tipping signs x 40 as per quote REF14345/1,02/10/2020,0149396,489.09,Revenue,Poppy Signs Ltd,21898,,
Chorley Borough Council,http://statistics.data.gov.uk/id/local-authority/30UE,Central Support Services,1009,Customer & Digital,Safety Signs And Posters,40017,"Equipment, Furniture & Materia",5023,A3 Correx Board Dog Fouling Signs x 100 as per quote REF14345/1,02/10/2020,0149396,926.06,Revenue,Poppy Signs Ltd,21898,,
Chorley Borough Council,http://statistics.data.gov.uk/id/local-authority/30UE,Business Support,1095,Commercial Services,Miscellaneous Expenses,40200,Miscellaneous Expenses,5034,As per quote reference: 14353/2 Please supply x6 A0 6mm Correx with full UV Print - Shop unit to let,14/10/2020,0149566,250.88,Revenue,Poppy Signs Ltd,21898,,
Chorley Borough Council,http://statistics.data.gov.uk/id/local-authority/30UE,Parking Services,1066,Commercial Services,Miscellaneous Expenses,40200,Miscellaneous Expenses,5034,As per quote ref: 14313/3. Re: Car Park Toblerone Signs 6off - 1150mm Tall - 10mm Correx with full UV Print - 3 faces ,14/10/2020,0149571,362.05,Revenue,Poppy Signs Ltd,21898,,
Chorley Borough Council,http://statistics.data.gov.uk/id/local-authority/30UE,Parking Services,1066,Commercial Services,Miscellaneous Expenses,40200,Miscellaneous Expenses,5034,quote ref14140/5 signs advising customers how to exit when barriers are in locked position to Friday St Car Park as per email,16/10/2020,0149693,439.13,Revenue,Poppy Signs Ltd,21898,,
Chorley Borough Council,http://statistics.data.gov.uk/id/local-authority/30UE,Capital,Capital,Early Intervention,Grants,03002,Capital Expenditure,Capital,Provision of Handyperson service funded by DFG for Q3 2020-21 (1/10/20 to 31/12/20),09/10/2020,0149656,"7,405.75",Capital,Preston Care and Repair,50018,,
Chorley Borough Council,http://statistics.data.gov.uk/id/local-authority/30UE,Elections,1012,Policy & Governance,Postages,40082,Communication and Computing,5028,canvass stage 3 - mail sort,09/10/2020,0149490,"2,634.42",Revenue,Print Image Facilities LLP,57870,,
Chorley Borough Council,http://statistics.data.gov.uk/id/local-authority/30UE,Elections,1012,Policy & Governance,Printing,40043,"Printing, Stationery & General",5026,Canvass reform - canvass forms first reminder,14/10/2020,0149680,"2,077.09",Revenue,Print Image Network,21171,,
Chorley Borough Council,http://statistics.data.gov.uk/id/local-authority/30UE,Elections,1012,Policy & Governance,Printing,40043,"Printing, Stationery & General",5026,2020 ITR`s,21/10/2020,0149829,"1,286.77",Revenue,Print Image Network,21171,,
Chorley Borough Council,http://statistics.data.gov.uk/id/local-authority/30UE,Central Support Services,1009,Commercial Services,Professional Fees,40063,Services,5027,Cost Management (with PM input),16/10/2020,0148692,"3,550.00",Revenue,Rider Levett Bucknall,67527,,
Chorley Borough Council,http://statistics.data.gov.uk/id/local-authority/30UE,Central Support Services,1009,Commercial Services,Consultants` Fees,40077,Services,5027,Project Management & Quantity Surveying on Tatton Regeneration scheme from Contractor appointment to RIBA Stage 7,14/10/2020,0149790,"10,102.50",Revenue,Rider Levett Bucknall,67527,,
Chorley Borough Council,http://statistics.data.gov.uk/id/local-authority/30UE,Central Support Services,1009,Commercial Services,Professional Fees,40063,Services,5027,Camelot valuation report,02/10/2020,0148651,"3,885.00",Revenue,Robert Pinkus & Co,19273,,
Chorley Borough Council,http://statistics.data.gov.uk/id/local-authority/30UE,Central Support Services,1009,Commercial Services,Consultants` Fees,40077,Services,5027,Rental & Sales Valuation (Alker Lane),14/10/2020,0149658,"5,158.00",Revenue,Robert Pinkus & Co,19273,,
Chorley Borough Council,http://statistics.data.gov.uk/id/local-authority/30UE,Democratic Represent and  Mgnt,1007,Policy & Governance,Other Contributions,40145,Grants and Subscriptions,5031,donation,16/10/2020,0149759,"1,500.00",Revenue,Royal British Legion Chorley Branch,76099,,
Chorley Borough Council,http://statistics.data.gov.uk/id/local-authority/30UE,Democratic Represent and  Mgnt,1007,Commercial Services,Electricity,20013,Energy Costs,5006,23/5/20 to 21/8/20,16/10/2020,0149561,630.87,Revenue,Scottish Power,18998,,
Chorley Borough Council,http://statistics.data.gov.uk/id/local-authority/30UE,Business Support,1095,Commercial Services,External Contractor,40198,Miscellaneous Expenses,5034,In respect of concierge services for PRIMROSE GARDENS for period  01/04/2020 to 31/03/2020,23/10/2020,0149902,"6,421.35",Revenue,Sector Security Services,19269,,
Chorley Borough Council,http://statistics.data.gov.uk/id/local-authority/30UE,Homelessness,1075,Commercial Services,External Contractor,40198,Miscellaneous Expenses,5034,In respect of Concierge services for the period 01/04/2020 - 31/03/2021,23/10/2020,0149903,"6,548.62",Revenue,Sector Security Services,19269,,
Chorley Borough Council,http://statistics.data.gov.uk/id/local-authority/30UE,Business Support,1095,Commercial Services,Computer Equipment - Security,40106,Communication and Computing,5028,Net 2 Proximity Keyfobs 695-644 10 x @25 each box,14/10/2020,0149664,250.00,Revenue,Securetronics,80526,,
Chorley Borough Council,http://statistics.data.gov.uk/id/local-authority/30UE,Capital,Capital,Early Intervention,Main Contractor,03007,Capital Expenditure,Capital,"Quote 6375J Cedar Field, Clayton-le-Woods. Topographical Survey to location shown on plan. CAD in 2D and 3D in metres.",23/10/2020,0149788,500.00,Capital,Site Surveying Services Ltd,68300,,
Chorley Borough Council,http://statistics.data.gov.uk/id/local-authority/30UE,Business Support,1095,Commercial Services,Window Cleaning,20034,Cleaning and Domestic Supplies,5012,PRIMROSE GARDENS Window cleaning services for Period 01/04/2020 - 31/03/2021 65 apartments with 7 windows per unit ,07/10/2020,0149557,477.95,Revenue,Sparkle Window Cleaning (Michael Jennings),77989,,
Chorley Borough Council,http://statistics.data.gov.uk/id/local-authority/30UE,Business Support,1095,Commercial Services,Miscellaneous Expenses,40200,Miscellaneous Expenses,5034,Whole site glass canopy clean as discussed on site inc roof section at Boots where green build up is present. ,30/10/2020,0150220,"12,620.00",Revenue,Sparkle Window Cleaning (Michael Jennings),77989,,
Chorley Borough Council,http://statistics.data.gov.uk/id/local-authority/30UE,Control Accounts,Control,Policy & Governance,General Balances,00100,Balance Sheet,Balance,Monthly Deductions from Payroll,21/10/2020,0149918,447.02,Revenue,St Catherines Hospice Promotions,72375,,
Chorley Borough Council,http://statistics.data.gov.uk/id/local-authority/30UE,Capital,Capital,Early Intervention,Consultants Fees,03025,Capital Expenditure,Capital,Westway Pavilion Contract - Implementation Stage from Contract Let through to the `end of defects`.  ,23/10/2020,0149555,"5,000.00",Capital,Steve Wells Associates Ltd,77157,,
Chorley Borough Council,http://statistics.data.gov.uk/id/local-authority/30UE,Capital,Capital,Commercial Services,Other Capital Related Fees,03024,Capital Expenditure,Capital,Provision of Public Realm & Highway Design  Engineering services April 2020 - March 2021  Invoiced on a days worked basis  ,14/10/2020,0149660,"3,745.44",Capital,Street Civil Engineering Limited,76750,,
Chorley Borough Council,http://statistics.data.gov.uk/id/local-authority/30UE,Capital,Capital,Early Intervention,Grants,03002,Capital Expenditure,Capital,ADDRESS REDACTED,14/10/2020,0149765,"11,685.00",Capital,Stringfellow Bldg Cntrctrs Ltd,17893,,
Chorley Borough Council,http://statistics.data.gov.uk/id/local-authority/30UE,Capital,Capital,Early Intervention,Grants,03002,Capital Expenditure,Capital,ADDRESS REDACTED,14/10/2020,0149766,"7,492.50",Capital,Stringfellow Bldg Cntrctrs Ltd,17893,,
Chorley Borough Council,http://statistics.data.gov.uk/id/local-authority/30UE,Capital,Capital,Early Intervention,Grants,03002,Capital Expenditure,Capital,ADDRESS REDACTED,14/10/2020,0149772,"4,467.25",Capital,Stringfellow Bldg Cntrctrs Ltd,17893,,
Chorley Borough Council,http://statistics.data.gov.uk/id/local-authority/30UE,Corporate Management,1008,Commercial Services,Miscellaneous Expenses,40200,Miscellaneous Expenses,5034,Covid-19 Financial Health Check accountancy support: For NAME REDACTED Costs to cover 6 months of Xero & initial training,07/10/2020,0149428,479.00,Revenue,Studholme-Bell Chartered Accountants,80605,,
Chorley Borough Council,http://statistics.data.gov.uk/id/local-authority/30UE,Corporate Management,1008,Commercial Services,Miscellaneous Expenses,40200,Miscellaneous Expenses,5034,Covid-19 Financial Health Check accountancy support: For NAME REDACTED Register the business for VAT and process first ,07/10/2020,0149491,279.00,Revenue,Studholme-Bell Chartered Accountants,80605,,
Chorley Borough Council,http://statistics.data.gov.uk/id/local-authority/30UE,Corporate Management,1008,Commercial Services,Miscellaneous Expenses,40200,Miscellaneous Expenses,5034,Covid-19 Financial Health Check accountancy support: For NAME REDACTED Prepare year-end accounts and bring records up ,14/10/2020,0149554,954.00,Revenue,Studholme-Bell Chartered Accountants,80605,,
Chorley Borough Council,http://statistics.data.gov.uk/id/local-authority/30UE,Business Support,1095,Commercial Services,Refuse Collection,20037,Cleaning and Domestic Supplies,5012,"Market Walk Extension  - General Waste, 8 x 1100L bins, (65kg weight allowance and 14p per kilo thereafter)  9.83 +VAT",23/10/2020,0149837,170.65,Revenue,SUEZ R&R UK LTD,17615,,
Chorley Borough Council,http://statistics.data.gov.uk/id/local-authority/30UE,Business Support,1095,Commercial Services,Refuse Collection,20037,Cleaning and Domestic Supplies,5012,"Market Walk Extension - Mixed Recycling,  8 x 1100L bins, . (35kg weight allowance and 10p per kilo thereafter) 8.09 +VAT ",23/10/2020,0149837,140.44,Revenue,SUEZ R&R UK LTD,17615,,
Chorley Borough Council,http://statistics.data.gov.uk/id/local-authority/30UE,Central Support Services,1009,Customer & Digital,Refuse Collection,20037,Cleaning and Domestic Supplies,5012,Trade waste collection & disposal from Chorley Council Buildings (1 April 2020 - 31 March 2021)   Civic Offices Union Street ,23/10/2020,0149838,256.56,Revenue,SUEZ R&R UK LTD,17615,,
Chorley Borough Council,http://statistics.data.gov.uk/id/local-authority/30UE,Unapportionable Central OHeads,1009,Customer & Digital,Refuse Collection,20037,Cleaning and Domestic Supplies,5012,Trade waste collection & disposal from Chorley Council Buildings (1 April 2020 - 31 March 2021)   Civic Offices Union Street ,23/10/2020,0149838,35.19,Revenue,SUEZ R&R UK LTD,17615,,
Chorley Borough Council,http://statistics.data.gov.uk/id/local-authority/30UE,Central Support Services,1009,Customer & Digital,Refuse Collection,20037,Cleaning and Domestic Supplies,5012,Trade waste collection & disposal from Chorley Council Buildings (1 April 2020 - 31 March 2021)  Town Hall GENERAL WASTE ,23/10/2020,0149838,128.28,Revenue,SUEZ R&R UK LTD,17615,,
Chorley Borough Council,http://statistics.data.gov.uk/id/local-authority/30UE,Unapportionable Central OHeads,1009,Customer & Digital,Refuse Collection,20037,Cleaning and Domestic Supplies,5012,Trade waste collection & disposal from Chorley Council Buildings (1 April 2020 - 31 March 2021) Town Hall RECYCLING ,23/10/2020,0149838,35.19,Revenue,SUEZ R&R UK LTD,17615,,
Chorley Borough Council,http://statistics.data.gov.uk/id/local-authority/30UE,Business Support,1095,Customer & Digital,Refuse Collection,20037,Cleaning and Domestic Supplies,5012,Trade waste collection & disposal from Chorley Council Buildings (1 April 2020 - 31 March 2021) Strawberry fields Digital Park ,23/10/2020,0149838,128.28,Revenue,SUEZ R&R UK LTD,17615,,
Chorley Borough Council,http://statistics.data.gov.uk/id/local-authority/30UE,Business Support,1095,Customer & Digital,Refuse Collection,20037,Cleaning and Domestic Supplies,5012,Trade waste collection & disposal from Chorley Council Buildings (1 April 2020 - 31 March 2021) Strawberry Fields digital park ,23/10/2020,0149838,105.57,Revenue,SUEZ R&R UK LTD,17615,,
Chorley Borough Council,http://statistics.data.gov.uk/id/local-authority/30UE,Community Development,1097,Customer & Digital,Refuse Collection,20037,Cleaning and Domestic Supplies,5012,Trade waste collection & disposal from Chorley Council Buildings (1 April 2020 - 31 March 2021) MP`s Office (35-39) Market St,23/10/2020,0149838,42.76,Revenue,SUEZ R&R UK LTD,17615,,
Chorley Borough Council,http://statistics.data.gov.uk/id/local-authority/30UE,Democratic Represent and  Mgnt,1007,Customer & Digital,Refuse Collection,20037,Cleaning and Domestic Supplies,5012,Trade waste collection & disposal from Chorley Council Buildings (1 April 2020 - 31 March 2021) Tatton CC Silverdale Road ,23/10/2020,0149838,21.33,Revenue,SUEZ R&R UK LTD,17615,,
Chorley Borough Council,http://statistics.data.gov.uk/id/local-authority/30UE,Recreation & Sport,1037,Customer & Digital,Refuse Collection,20037,Cleaning and Domestic Supplies,5012,Trade waste collection & disposal from Chorley Council Buildings (1 April 2020 - 31 March 2021) Eaves Green CC  1  X 360L bin ,23/10/2020,0149838,29.56,Revenue,SUEZ R&R UK LTD,17615,,
Chorley Borough Council,http://statistics.data.gov.uk/id/local-authority/30UE,Democratic Represent and  Mgnt,1007,Customer & Digital,Refuse Collection,20037,Cleaning and Domestic Supplies,5012,Trade waste collection & disposal from Chorley Council Buildings (1 April 2020 - 31 March 2021) Astley Hall 1 X 1100L bin ,23/10/2020,0149838,42.76,Revenue,SUEZ R&R UK LTD,17615,,
Chorley Borough Council,http://statistics.data.gov.uk/id/local-authority/30UE,Recreation & Sport,1037,Customer & Digital,Miscellaneous Expenses,40200,Miscellaneous Expenses,5034,Trade waste collection & disposal from Chorley Council Buildings (1 April 2020 - 31 March 2021) Lancaster Way CC at Buckshaw ,23/10/2020,0149838,29.49,Revenue,SUEZ R&R UK LTD,17615,,
Chorley Borough Council,http://statistics.data.gov.uk/id/local-authority/30UE,Recreation & Sport,1037,Customer & Digital,Miscellaneous Expenses,40200,Miscellaneous Expenses,5034,Trade waste collection & disposal from Chorley Council Buildings (1 April 2020 - 31 March 2021) Buttermere Green CC 1 X 360L ,23/10/2020,0149838,29.49,Revenue,SUEZ R&R UK LTD,17615,,
Chorley Borough Council,http://statistics.data.gov.uk/id/local-authority/30UE,Democratic Represent and  Mgnt,1007,Customer & Digital,Refuse Collection,20037,Cleaning and Domestic Supplies,5012,Trade waste collection & disposal from Chorley Council Buildings (1 April 2020 - 31 March 2021) Clayton Brook Village Hall 6 X ,23/10/2020,0149838,22.71,Revenue,SUEZ R&R UK LTD,17615,,
Chorley Borough Council,http://statistics.data.gov.uk/id/local-authority/30UE,Recreation & Sport,1037,Customer & Digital,Refuse Collection,20037,Cleaning and Domestic Supplies,5012,Trade waste collection & disposal from Chorley Council Buildings (1 April 2020 - 31 March 2021) Astley Village CC 1 x 360L bin ,23/10/2020,0149838,29.49,Revenue,SUEZ R&R UK LTD,17615,,
Chorley Borough Council,http://statistics.data.gov.uk/id/local-authority/30UE,Business Support,1095,Customer & Digital,Refuse Collection,20037,Cleaning and Domestic Supplies,5012,"Calico Lounge - General Waste, 3 x 1100L bins, (65kg weight allowance and 14p per kilo thereafter)  9.83 +VAT per bin per lift",23/10/2020,0149838,105.57,Revenue,SUEZ R&R UK LTD,17615,,
Chorley Borough Council,http://statistics.data.gov.uk/id/local-authority/30UE,Business Support,1095,Commercial Services,Refuse Collection,20037,Cleaning and Domestic Supplies,5012,"Calico Lounge - Mixed Recycling,  3 x 1100L bins, (35kg weight allowance and 10p per kilo thereafter) 8.09 +VAT per bin per lift",23/10/2020,0149896,128.28,Revenue,SUEZ R&R UK LTD,17615,,
Chorley Borough Council,http://statistics.data.gov.uk/id/local-authority/30UE,Business Support,1095,Commercial Services,Refuse Collection,20037,Cleaning and Domestic Supplies,5012,"Calico Lounge - Food Waste, 2 x 240L bins, 9.43 +VAT per bin per lift x 52 lifts � Total 980.72",23/10/2020,0149896,80.04,Revenue,SUEZ R&R UK LTD,17615,,
Chorley Borough Council,http://statistics.data.gov.uk/id/local-authority/30UE,Business Support,1095,Commercial Services,Refuse Collection,20037,Cleaning and Domestic Supplies,5012,"Calico Lounge - Glass Waste, 4 x 240L bins, 3.84 +VAT per bin per lift x 52 weeks � Total 798.72",23/10/2020,0149896,130.50,Revenue,SUEZ R&R UK LTD,17615,,
Chorley Borough Council,http://statistics.data.gov.uk/id/local-authority/30UE,Business Support,1095,Commercial Services,Refuse Collection,20037,Cleaning and Domestic Supplies,5012,Any Excess Weight Charges from Market Walk Extension and Calico Lounge bins 5000,23/10/2020,0149896,43.12,Revenue,SUEZ R&R UK LTD,17615,,
Chorley Borough Council,http://statistics.data.gov.uk/id/local-authority/30UE,Business Support,1095,Commercial Services,Refuse Collection,20037,Cleaning and Domestic Supplies,5012,2020/21 - Market Walk Yard 3 - 2 x 8 yard FEL general waste @49.27 per lift (per FEL) - Total 5124.08,23/10/2020,0149898,213.83,Revenue,SUEZ R&R UK LTD,17615,,
Chorley Borough Council,http://statistics.data.gov.uk/id/local-authority/30UE,Business Support,1095,Commercial Services,Refuse Collection,20037,Cleaning and Domestic Supplies,5012,Any excess weight charges for Market Walk Skips and FEL`s 3000,23/10/2020,0149898,81.00,Revenue,SUEZ R&R UK LTD,17615,,
Chorley Borough Council,http://statistics.data.gov.uk/id/local-authority/30UE,Business Support,1095,Commercial Services,Refuse Collection,20037,Cleaning and Domestic Supplies,5012,"2020/21- To provide a bakkie cage for cardboard in Service Yard 3 @ Market Walk Shopping Centre, Chorley. ",23/10/2020,0149899,12.00,Revenue,SUEZ R&R UK LTD,17615,,
Chorley Borough Council,http://statistics.data.gov.uk/id/local-authority/30UE,Business Support,1095,Commercial Services,Refuse Collection,20037,Cleaning and Domestic Supplies,5012,2020/21 - Market Walk Yard 1 - General Waste compacted - 35 yard roll on/roll off skip from compactor 88.1 per exchange ,23/10/2020,0149899,176.20,Revenue,SUEZ R&R UK LTD,17615,,
Chorley Borough Council,http://statistics.data.gov.uk/id/local-authority/30UE,Business Support,1095,Commercial Services,Refuse Collection,20037,Cleaning and Domestic Supplies,5012,2020/21 - Market Walk Yard 1 - General Waste compacted - 35 yard roll on/roll off skip from compactor disposal costs per tonne ,23/10/2020,0149899,"2,075.22",Revenue,SUEZ R&R UK LTD,17615,,
Chorley Borough Council,http://statistics.data.gov.uk/id/local-authority/30UE,Business Support,1095,Commercial Services,Refuse Collection,20037,Cleaning and Domestic Supplies,5012,2020/21 - Market Walk Yard 1 - 35 yard roll on/roll off cardboard skip @25 rental per month - no haulage or disposal costs,23/10/2020,0149899,25.00,Revenue,SUEZ R&R UK LTD,17615,,
Chorley Borough Council,http://statistics.data.gov.uk/id/local-authority/30UE,Business Support,1095,Commercial Services,Refuse Collection,20037,Cleaning and Domestic Supplies,5012,2020/21 - Market Walk Yard 2 - 35 yard roll on/roll off cardboard skip @25 rental per month - no haulage or disposal costs,23/10/2020,0149899,25.00,Revenue,SUEZ R&R UK LTD,17615,,
Chorley Borough Council,http://statistics.data.gov.uk/id/local-authority/30UE,Business Support,1095,Commercial Services,Refuse Collection,20037,Cleaning and Domestic Supplies,5012,2020/21 - Market Walk Yard 3 - 35 yard roll on/roll off cardboard skip @25 rental per month - no haulage or disposal costs,23/10/2020,0149899,25.00,Revenue,SUEZ R&R UK LTD,17615,,
Chorley Borough Council,http://statistics.data.gov.uk/id/local-authority/30UE,Business Support,1095,Commercial Services,Refuse Collection,20037,Cleaning and Domestic Supplies,5012,2020/21 - Market Walk Yard 3 - 35 yard roll on/roll off plastic skip @25 rental per month - no haulage or disposal costs,23/10/2020,0149899,25.00,Revenue,SUEZ R&R UK LTD,17615,,
Chorley Borough Council,http://statistics.data.gov.uk/id/local-authority/30UE,Open Spaces,1038,Customer & Digital,Supplies-Grounds Maintenance,40025,"Equipment, Furniture & Materia",5023,"To remove old roundabout , install new roundabout and repair wet pour surfacing at Redwing Play Area, Chorley",30/10/2020,0149450,"8,592.52",Revenue,Sutcliffe Play,78506,,
Chorley Borough Council,http://statistics.data.gov.uk/id/local-authority/30UE,Central Support Services,1009,Customer & Digital,ICT Software Implementation,40114,Communication and Computing,5028,"CCTV - Tech Sol, ongoing repairs and maintenance",07/10/2020,0148822,930.00,Revenue,Technology Solutions,72376,,
Chorley Borough Council,http://statistics.data.gov.uk/id/local-authority/30UE,Central Support Services,1009,Customer & Digital,ICT Software Implementation,40114,Communication and Computing,5028,"CCTV - Tech Sol, ongoing repairs and maintenance",21/10/2020,0149445,817.50,Revenue,Technology Solutions,72376,,
Chorley Borough Council,http://statistics.data.gov.uk/id/local-authority/30UE,Business Support,1095,Commercial Services,Security Service,40062,Services,5027,Security cover at DOP - September 2020,14/10/2020,0149682,"6,454.43",Revenue,The ExcluSec Group Ltd,78056,,
Chorley Borough Council,http://statistics.data.gov.uk/id/local-authority/30UE,Central Support Services,1009,Commercial Services,Miscellaneous Expenses,40200,Miscellaneous Expenses,5034,Information boards for Tatton,09/10/2020,0148615,257.00,Revenue,The Print Quarter,17987,,
Chorley Borough Council,http://statistics.data.gov.uk/id/local-authority/30UE,Democratic Represent and  Mgnt,1007,Policy & Governance,Printing of Year Book,40045,"Printing, Stationery & General",5026,1920/1921 diary booklets x 120 as per quotation 12316,09/10/2020,0148859,967.00,Revenue,The Print Quarter,17987,,
Chorley Borough Council,http://statistics.data.gov.uk/id/local-authority/30UE,Culture & Heritage,1036,Policy & Governance,Exhibitions & Special Events,40158,Miscellaneous Expenses,5034,Printing costs for BWPA 6 month external exhibtion,07/10/2020,0149449,"2,311.50",Revenue,The Print Quarter,17987,,
Chorley Borough Council,http://statistics.data.gov.uk/id/local-authority/30UE,Capital,Capital,Policy & Governance,Other Contractor,03012,Capital Expenditure,Capital,Candles 220g Bergamot & Orange Blossom; Wild Pear & Cedarwood; Patchouli & Amber; 100g Bergamot & Orange Bl,19/10/2020,0149387,523.03,Capital,The Wax House,80859,,
Chorley Borough Council,http://statistics.data.gov.uk/id/local-authority/30UE,Capital,Capital,Early Intervention,Main Contractor,03007,Capital Expenditure,Capital,Payment of the 12month retention for Delph Way play area refurbishment,23/10/2020,0149872,600.00,Capital,Thompson Groundworks Limited,78088,,
Chorley Borough Council,http://statistics.data.gov.uk/id/local-authority/30UE,Economic Development,1096,Commercial Services,Christmas Lights,40179,Miscellaneous Expenses,5034,"Chorley Town Centre display Install Mini Christmas Trees with Smart Cell Lights x 176 = 12,320 Multi Tree Discount 308.00",30/10/2020,0150206,"11,711.70",Revenue,Town Centre Trees,57436,,
Chorley Borough Council,http://statistics.data.gov.uk/id/local-authority/30UE,Corporate Management,1008,Commercial Services,Miscellaneous Expenses,40200,Miscellaneous Expenses,5034,11 no. `Counter terror sentry block finished in high visibility yellow & black banding complete with fork lifting pockets and eyelets`,14/10/2020,0149519,"13,170.62",Revenue,Townscape products ltd,78064,,
Chorley Borough Council,http://statistics.data.gov.uk/id/local-authority/30UE,Corporate Management,1008,Commercial Services,Miscellaneous Expenses,40200,Miscellaneous Expenses,5034,"20 no. `City planter 1250 x 450 x 600mm smooth prestige white finish` including TM, at 14,880.00 total as your quote of 21/8/20",14/10/2020,0149520,"7,068.00",Revenue,Townscape products ltd,78064,,
Chorley Borough Council,http://statistics.data.gov.uk/id/local-authority/30UE,Central Support Services,1009,Commercial Services,Consultants` Fees,40077,Services,5027,Tatton - Locality Health Project - stage 3,09/10/2020,0149459,"14,550.00",Revenue,Trebbi Continuum,77723,,
Chorley Borough Council,http://statistics.data.gov.uk/id/local-authority/30UE,Central Support Services,1009,Commercial Services,Professional Fees,40063,Services,5027,"Financial Feasibility Study.
Structural survey of perimeter retaining structures.",07/10/2020,0149461,"3,750.00",Revenue,Trebbi Continuum,77723,,
Chorley Borough Council,http://statistics.data.gov.uk/id/local-authority/30UE,Central Support Services,1009,Commercial Services,Professional Fees,40063,Services,5027,"Financial Feasibility Study.
Structural survey of perimeter retaining structures.",07/10/2020,0149518,"6,000.00",Revenue,Trebbi Continuum,77723,,
Chorley Borough Council,http://statistics.data.gov.uk/id/local-authority/30UE,Development Control,1091,Customer & Digital,Professional Fees,40063,Services,5027,"Professional Services Provided: Nell Lane, Chorley � Viability Review",30/10/2020,0149839,"4,000.00",Revenue,Trebbi Continuum,77723,,
Chorley Borough Council,http://statistics.data.gov.uk/id/local-authority/30UE,Economic Development,1096,Commercial Services,Miscellaneous Expenses,40200,Miscellaneous Expenses,5034,FHSF Planning Application for Chorley Civic Square - per consultation fee schedule: August 2020 Buzz Bingo Demolition,23/10/2020,0149843,"2,000.00",Revenue,Trebbi Continuum,77723,,
Chorley Borough Council,http://statistics.data.gov.uk/id/local-authority/30UE,Service Management & Support,1009,Customer & Digital,Vehicles and Plant Operating Lease,30029,Contrct Hire & Operating Lease,5018,Annual rent PK15 UPE Electric Van Acenta,23/10/2020,0149403,"2,736.78",Revenue,Triple Point Lease Partners,71646,,
Chorley Borough Council,http://statistics.data.gov.uk/id/local-authority/30UE,Service Management & Support,1009,Customer & Digital,Vehicles and Plant Operating Lease,30029,Contrct Hire & Operating Lease,5018,Annual rent PK15 UOA Electric Van Acenta,23/10/2020,0149403,"2,838.95",Revenue,Triple Point Lease Partners,71646,,
Chorley Borough Council,http://statistics.data.gov.uk/id/local-authority/30UE,Service Management & Support,1009,Customer & Digital,Vehicles and Plant Operating Lease,30029,Contrct Hire & Operating Lease,5018,Annual rent PE15 ZRJ Electric Van Acenta,23/10/2020,0149403,"2,642.93",Revenue,Triple Point Lease Partners,71646,,
Chorley Borough Council,http://statistics.data.gov.uk/id/local-authority/30UE,Central Support Services,1009,Policy & Governance,Miscellaneous Expenses,40200,Miscellaneous Expenses,5034,01 october 2020,14/10/2020,0149502,"1,605.13",Revenue,UK Healthcare (BDHSC),17241,,
Chorley Borough Council,http://statistics.data.gov.uk/id/local-authority/30UE,Unapportionable Central OHeads,1009,Policy & Governance,Miscellaneous Expenses,40200,Miscellaneous Expenses,5034,01 Sept 2020,14/10/2020,0149503,"1,614.33",Revenue,UK Healthcare (BDHSC),17241,,
Chorley Borough Council,http://statistics.data.gov.uk/id/local-authority/30UE,Unapportionable Central OHeads,1009,Customer & Digital,Service Fees,40056,Services,5027,Daily Hybrid Mail & Annual Billing,23/10/2020,0149141,669.66,Revenue,UKMAIL Ltd (Mail),57758,,
Chorley Borough Council,http://statistics.data.gov.uk/id/local-authority/30UE,Central Support Services,1009,Customer & Digital,Service Fees,40056,Services,5027,Daily Hybrid Mail & Annual Billing,23/10/2020,0149259,938.56,Revenue,UKMAIL Ltd (Mail),57758,,
Chorley Borough Council,http://statistics.data.gov.uk/id/local-authority/30UE,Unapportionable Central OHeads,1009,Customer & Digital,Service Fees,40056,Services,5027,Daily Hybrid Mail & Annual Billing,23/10/2020,0149515,"1,109.04",Revenue,UKMAIL Ltd (Mail),57758,,
Chorley Borough Council,http://statistics.data.gov.uk/id/local-authority/30UE,Central Support Services,1009,Customer & Digital,Service Fees,40056,Services,5027,Daily Hybrid Mail & Annual Billing,21/10/2020,0149774,"2,070.30",Revenue,UKMAIL Ltd (Mail),57758,,
Chorley Borough Council,http://statistics.data.gov.uk/id/local-authority/30UE,Democratic Represent and  Mgnt,1007,Policy & Governance,Other Contributions,40145,Grants and Subscriptions,5031,Charity donation to Environmental Projects in Chorley from Mayor`s Charity Appeal 2019-20. ,21/10/2020,0149821,"1,000.00",Revenue,Unify Credit Union Ltd,55509,,
Chorley Borough Council,http://statistics.data.gov.uk/id/local-authority/30UE,Control Accounts,Control,Policy & Governance,General Balances,00100,Balance Sheet,Balance,Monthly Deductions from Payroll,21/10/2020,0149919,"1,903.81",Revenue,Unify Credit Union Ltd,55509,,
Chorley Borough Council,http://statistics.data.gov.uk/id/local-authority/30UE,Central Support Services,1009,Early Intervention,Miscellaneous Expenses,40200,Miscellaneous Expenses,5034,neighbourhood working,23/10/2020,0149871,470.00,Revenue,United Reformed Church,20885,,
Chorley Borough Council,http://statistics.data.gov.uk/id/local-authority/30UE,Capital,Capital,Early Intervention,Grants,03002,Capital Expenditure,Capital,ADDRESS REDACTED,14/10/2020,0149697,"3,885.15",Capital,UPS Building and Maintenance Ltd,76235,,
Chorley Borough Council,http://statistics.data.gov.uk/id/local-authority/30UE,Capital,Capital,Early Intervention,Grants,03002,Capital Expenditure,Capital,ADDRESS REDACTED,21/10/2020,0149870,"5,206.25",Capital,UPS Building and Maintenance Ltd,76235,,
Chorley Borough Council,http://statistics.data.gov.uk/id/local-authority/30UE,Unapportionable Central OHeads,1009,Policy & Governance,Car Leasing Payment,14100,Direct Employee Expenses,5001,NAME REDACTED Skoda Karoq Estate - 1.5 TSI SE Technology 5dr Energy blue Steel spare wheel with tool kit and jack,30/10/2020,0149512,"2,876.74",Revenue,VWFS UK Ltd T/A Volkswagen Group Leasing,56010,,
Chorley Borough Council,http://statistics.data.gov.uk/id/local-authority/30UE,Central Support Services,1009,Policy & Governance,Car Leasing Payment,14100,Direct Employee Expenses,5001,VAT,30/10/2020,0149512,252.76,Revenue,VWFS UK Ltd T/A Volkswagen Group Leasing,56010,,
Chorley Borough Council,http://statistics.data.gov.uk/id/local-authority/30UE,Control Accounts,Control,Policy & Governance,Manual Control Account,00001,Balance Sheet,Balance,- VAT,30/10/2020,0149512,-252.76,Revenue,VWFS UK Ltd T/A Volkswagen Group Leasing,56010,,
Chorley Borough Council,http://statistics.data.gov.uk/id/local-authority/30UE,Central Support Services,1009,Commercial Services,Consultants` Fees,40077,Services,5027,Procurement Management (Alker Lane),23/10/2020,0149822,"2,000.00",Revenue,Walker Sime Limited,80921,,
Chorley Borough Council,http://statistics.data.gov.uk/id/local-authority/30UE,Central Support Services,1009,Commercial Services,Professional Fees,40063,Services,5027,Archaeological pre-demolition desktop study,14/10/2020,0149234,827.00,Revenue,Wardell Armstrong LLP,77818,,
Chorley Borough Council,http://statistics.data.gov.uk/id/local-authority/30UE,Open Spaces,1038,Commercial Services,Water - Metered Supplies,20022,Water Services,5009,24/7/18 to 5/5/19,14/10/2020,0149230,327.50,Revenue,Water-plus,17926,,
Chorley Borough Council,http://statistics.data.gov.uk/id/local-authority/30UE,Democratic Represent and  Mgnt,1007,Commercial Services,Water - Metered Supplies,20022,Water Services,5009,16/4 to 23/7 2020,14/10/2020,0149235,456.40,Revenue,Water-plus,17926,,
Chorley Borough Council,http://statistics.data.gov.uk/id/local-authority/30UE,Unapportionable Central OHeads,1009,Commercial Services,Water - Metered Supplies,20022,Water Services,5009,28/2 to 16/6 2020,14/10/2020,0149236,"2,007.34",Revenue,Water-plus,17926,,
Chorley Borough Council,http://statistics.data.gov.uk/id/local-authority/30UE,Central Support Services,1009,Commercial Services,Water - Metered Supplies,20022,Water Services,5009,16/1 to 21/4 2020,14/10/2020,0149238,"1,781.69",Revenue,Water-plus,17926,,
Chorley Borough Council,http://statistics.data.gov.uk/id/local-authority/30UE,Unapportionable Central OHeads,1009,Commercial Services,Water - Metered Supplies,20022,Water Services,5009,22/4 to 23/7 2020,14/10/2020,0149239,900.48,Revenue,Water-plus,17926,,
Chorley Borough Council,http://statistics.data.gov.uk/id/local-authority/30UE,Recreation & Sport,1037,Commercial Services,Water - Metered Supplies,20022,Water Services,5009,,14/10/2020,0149242,"2,876.95",Revenue,Water-plus,17926,,
Chorley Borough Council,http://statistics.data.gov.uk/id/local-authority/30UE,Democratic Represent and  Mgnt,1007,Commercial Services,Water - Metered Supplies,20022,Water Services,5009,24/9/19 to 20/1/20,14/10/2020,0149243,689.22,Revenue,Water-plus,17926,,
Chorley Borough Council,http://statistics.data.gov.uk/id/local-authority/30UE,Culture & Heritage,1036,Commercial Services,Water - Metered Supplies,20022,Water Services,5009,20/4/20 to 21/7/2020,14/10/2020,0149244,382.48,Revenue,Water-plus,17926,,
Chorley Borough Council,http://statistics.data.gov.uk/id/local-authority/30UE,Democratic Represent and  Mgnt,1007,Commercial Services,Water - Metered Supplies,20022,Water Services,5009,21/1/20 to 19/4/20,14/10/2020,0149246,553.45,Revenue,Water-plus,17926,,
Chorley Borough Council,http://statistics.data.gov.uk/id/local-authority/30UE,Democratic Represent and  Mgnt,1007,Commercial Services,Water - Metered Supplies,20022,Water Services,5009,1/1/20 to 5/5/20,14/10/2020,0149252,"1,784.19",Revenue,Water-plus,17926,,
Chorley Borough Council,http://statistics.data.gov.uk/id/local-authority/30UE,Homelessness,1075,Commercial Services,Water - Metered Supplies,20022,Water Services,5009,29/5 to 19/8 2020,14/10/2020,0149253,"1,589.38",Revenue,Water-plus,17926,,
Chorley Borough Council,http://statistics.data.gov.uk/id/local-authority/30UE,Homelessness,1075,Commercial Services,Water - Metered Supplies,20022,Water Services,5009,20/2/ to 28/5 2020,14/10/2020,0149254,"2,123.44",Revenue,Water-plus,17926,,
Chorley Borough Council,http://statistics.data.gov.uk/id/local-authority/30UE,Business Support,1095,Commercial Services,Water - Metered Supplies,20022,Water Services,5009,2/10/19 to 17/9/20,30/10/2020,0149696,994.70,Revenue,Water-plus,17926,,
Chorley Borough Council,http://statistics.data.gov.uk/id/local-authority/30UE,Capital,Capital,Early Intervention,Main Contractor,03007,Capital Expenditure,Capital,"Wetland Engineering to investigate, model, design, report and oversee the build of a wetland at Carr Brook Linear Park",23/10/2020,0149695,688.00,Capital,Wetland Engineering,80769,,
Chorley Borough Council,http://statistics.data.gov.uk/id/local-authority/30UE,Elections,1012,Policy & Governance,Rent/Hire Of Premises,20017,Premises Rents,5007,room hire for polling station 2 may 2019 Borough and European 23 May 2019,16/10/2020,0143819,296.66,Revenue,Withnell Fold Primary School,18233,,
Chorley Borough Council,http://statistics.data.gov.uk/id/local-authority/30UE,Recognised Cap Grants & Conts,,Customer & Digital,Contributions Parish Councils,40144,Grants and Subscriptions,5031,cil rec,30/10/2020,0149953,"2,456.91",Revenue,Withnell Parish Council,16211,,
Chorley Borough Council,http://statistics.data.gov.uk/id/local-authority/30UE,Street Cleansing,1049,Customer & Digital,Provn Of Street Furniture,20057,Grounds Maintenance Costs,5013,"26 x 120 Litre Galvanised Steel Litter Bin Complete With Slight Peaked Capped Lid, Petal Ashtray, Stainless Steel Rod Hinge.",23/10/2020,0149850,"4,940.00",Revenue,Wybone Ltd,18097,,
Chorley Borough Council,http://statistics.data.gov.uk/id/local-authority/30UE,Capital,Capital,Policy & Governance,Other Contractor,03012,Capital Expenditure,Capital,"Stabilise staircase at Astley Hall To open up areas of the building as required, beneath the Main Stairs and Landing, removing",23/10/2020,0149778,"1,230.00",Capital,Wynn Griffiths & Tarr Limited Business,77085,,
Chorley Borough Council,http://statistics.data.gov.uk/id/local-authority/30UE,Culture & Heritage,1036,Policy & Governance,Conservation Of Exhibits,40059,Services,5027,2 conservators for remedial conservation to furniture and interior woodwork. update furniture condition survey with work completed.,23/10/2020,0149779,750.00,Revenue,Wynn Griffiths & Tarr Limited Business,77085,,